Workbook

Sheet Základní údaje
A1: kolej: Thalerova, VŠE
A2: OBDOBÍ:
A3: 2025-03-01 | B3: 2029-02-28
A4: Identifikace subjektu podávajícího nabídku:
A5: Název subjektu:
A6: IČ:
A7: Sídlo:
A8: Zapsaná v:
D9: Předpoklad roční inflace
D10: 1. rok | E10: 2. rok | F10: 3. rok | G10: 4. rok
A11: CENA pracovní dny [Kč/hodinu/člověka]: | B11: 0 | C11: =IF(B11<>0,B12/B11,0) -> 0 | D11: 0 | E11: 0 | F11: 0 | G11: 0
A12: CENA víkendy a státní svátky[Kč/hodinu/člověka]: | B12: 0 | C12: =IF(B11<>0,(5*B11+2*B12)/7/B11,0) -> 0 | D12: 1 | E12: 1 | F12: 1 | G12: 1
D13: 1 | E13: 1 | F13: 1 | G13: 1 | H13: =SUM(D13:G13)/4 -> 1
A15: CENA CELKEM ZA 4 ROKY: | B15: ='Rozpis úklidu'!B100:D100 -> 0

Sheet Rozpis úklidu
A1: ='Základní údaje'!A1 -> kolej: Thalerova, VŠE | B1: Období: | C1: ='Základní údaje'!A3 -> 2025-03-01 | D1: ='Základní údaje'!B3 -> 2029-02-28 | R1: 0 | S1: 1
A2: Cena za 1 úklidovou hodinu: | B2: ='Základní údaje'!B11 -> 0 | C2: Kč/hod. / | D2: ='Základní údaje'!B12 -> 0 | E2: Kč/hod.
A3: Úklidová jednotka | B3: plocha [m²] | C3: kusy [-] | D3: počet úklidových jednotek | E3: CELKEM [m²] [ks] | F3: uklízí se | G3: počet úklidů/ činností | H3: sezonní týden od | I3: sezonní týden do | J3: uklízí se v pracovní dny | K3: uklízí se o víkendech | L3: Popis činnosti | M3: doporučený čas na úklidovou jednotku [min] | N3: navrhovaný čas na úklidovou jednotku [min.] | O3: celkový čas úklidu všech úklidových jednotek [hod.] | P3: cena za úklidovou jednotku [Kč] | Q3: cena celkem za všechny úklidové jednotky (prac. dny) [Kč] | R3: cena celkem za období úklidu [Kč] | S3: Poznámka
A4: Suterén
A5: výtah | C5: 1 | D5: 2 | E5: =B5*D5+C5*D5 -> 2 | F5: denně | G5: 0.15 | J5: 1 | K5: 0 | L5: Typová činnost č. 11 | M5: 5 | O5: =IF(N5=0,M5*D5/60,N5*D5/60) -> 0.1666666667 | P5: =ROUND(IF(N5=0,M5/60*$B$2,N5/60*$B$2),0) -> 0 | Q5: =P5*D5 -> 0 | R5: =IF(F5="denně",Q5*G5*$B$96,IF(F5="týdně",Q5*G5*$B$97,IF(F5="měsíčně",Q5*G5*$B$98,IF(F5="čtvrtletně",Q5*G5*4*$B$99,IF(F5="ročně",Q5*G5*$B$99,G5*Q5*$B$99)))))*'Základní údaje'!$H$13*IF(K51=1,'Základní údaje'!$C$12,1) -> 0
A6: 010 -velká prádelna | B6: 27 | D6: 1 | E6: 27 | F6: denně | G6: 0.15 | J6: 1 | K6: 0 | L6: Typová činnost č. 4 | M6: 25 | O6: 0.4166666667 | P6: 0 | Q6: 0 | R6: =IF(F6="denně",Q6*G6*$B$96,IF(F6="týdně",Q6*G6*$B$97,IF(F6="měsíčně",Q6*G6*$B$98,IF(F6="čtvrtletně",Q6*G6*4*$B$99,IF(F6="ročně",Q6*G6*$B$99,G6*Q6*$B$99)))))*'Základní údaje'!$H$13*IF(K52=1,'Základní údaje'!$C$12,1) -> 0
A7: 010 - sušárna+ sušičky | B7: 10 | D7: 1 | E7: 10 | F7: denně | G7: 0.15 | J7: 1 | K7: 0 | L7: Typová činnost č. 3 | M7: 10 | O7: 0.1666666667 | P7: 0 | Q7: 0 | R7: =IF(F7="denně",Q7*G7*$B$96,IF(F7="týdně",Q7*G7*$B$97,IF(F7="měsíčně",Q7*G7*$B$98,IF(F7="čtvrtletně",Q7*G7*4*$B$99,IF(F7="ročně",Q7*G7*$B$99,G7*Q7*$B$99)))))*'Základní údaje'!$H$13*IF(K53=1,'Základní údaje'!$C$12,1) -> 0
A8: 031- sklad | B8: 33 | D8: 1 | E8: 33 | F8: čtvrtletně | G8: 0.15 | J8: 1 | K8: 0 | L8: Typová činnost č. 3 | M8: 8 | O8: 0.1333333333 | P8: 0 | Q8: 0 | R8: =IF(F8="denně",Q8*G8*$B$96,IF(F8="týdně",Q8*G8*$B$97,IF(F8="měsíčně",Q8*G8*$B$98,IF(F8="čtvrtletně",Q8*G8*4*$B$99,IF(F8="ročně",Q8*G8*$B$99,G8*Q8*$B$99)))))*'Základní údaje'!$H$13*IF(K55=1,'Základní údaje'!$C$12,1) -> 0
A9: kotelna | B9: 48 | D9: 1 | E9: 48 | F9: čtvrtletně | G9: 0.15 | J9: 1 | K9: 0 | L9: Typová činnost č. 3 | M9: 15 | O9: 0.25 | P9: 0 | Q9: 0 | R9: =IF(F9="denně",Q9*G9*$B$96,IF(F9="týdně",Q9*G9*$B$97,IF(F9="měsíčně",Q9*G9*$B$98,IF(F9="čtvrtletně",Q9*G9*4*$B$99,IF(F9="ročně",Q9*G9*$B$99,G9*Q9*$B$99)))))*'Základní údaje'!$H$13*IF(K56=1,'Základní údaje'!$C$12,1) -> 0
A10: 011 -sklad nábytku | B10: 53 | D10: 1 | E10: 53 | F10: čtvrtletně | G10: 0.15 | J10: 1 | K10: 0 | L10: Typová činnost č. 3 | M10: 10 | O10: 0.1666666667 | P10: 0 | Q10: 0 | R10: =IF(F10="denně",Q10*G10*$B$96,IF(F10="týdně",Q10*G10*$B$97,IF(F10="měsíčně",Q10*G10*$B$98,IF(F10="čtvrtletně",Q10*G10*4*$B$99,IF(F10="ročně",Q10*G10*$B$99,G10*Q10*$B$99)))))*'Základní údaje'!$H$13*IF(K56=1,'Základní údaje'!$C$12,1) -> 0
A11: 056 -sklad lednice | B11: 56 | D11: 1 | E11: 56 | F11: čtvrtletně | G11: 0.15 | J11: 1 | K11: 0 | L11: Typová činnost č. 3 | M11: 10 | O11: 0.1666666667 | P11: 0 | Q11: 0 | R11: =IF(F11="denně",Q11*G11*$B$96,IF(F11="týdně",Q11*G11*$B$97,IF(F11="měsíčně",Q11*G11*$B$98,IF(F11="čtvrtletně",Q11*G11*4*$B$99,IF(F11="ročně",Q11*G11*$B$99,G11*Q11*$B$99)))))*'Základní údaje'!$H$13*IF(K57=1,'Základní údaje'!$C$12,1) -> 0
A12: 046 -sklad prádla | B12: 46 | D12: 1 | E12: 46 | F12: týdně | G12: 0.15 | J12: 1 | K12: 0 | L12: Typová činnost č. 3 | M12: 12 | O12: 0.2 | P12: 0 | Q12: 0 | R12: =IF(F12="denně",Q12*G12*$B$96,IF(F12="týdně",Q12*G12*$B$97,IF(F12="měsíčně",Q12*G12*$B$98,IF(F12="čtvrtletně",Q12*G12*4*$B$99,IF(F12="ročně",Q12*G12*$B$99,G12*Q12*$B$99)))))*'Základní údaje'!$H$13*IF(K58=1,'Základní údaje'!$C$12,1) -> 0
A13: 037 -sklad prádla -odpisy | B13: 49 | D13: 1 | E13: 49 | F13: čtvrtletně | G13: 0.15 | J13: 1 | K13: 0 | L13: Typová činnost č. 3 | M13: 12 | O13: 0.2 | P13: 0 | Q13: 0 | R13: =IF(F13="denně",Q13*G13*$B$96,IF(F13="týdně",Q13*G13*$B$97,IF(F13="měsíčně",Q13*G13*$B$98,IF(F13="čtvrtletně",Q13*G13*4*$B$99,IF(F13="ročně",Q13*G13*$B$99,G13*Q13*$B$99)))))*'Základní údaje'!$H$13*IF(K59=1,'Základní údaje'!$C$12,1) -> 0
A14: 053 -sklad drogerie | B14: 42 | D14: 1 | E14: 42 | F14: čtvrtletně | G14: 0.15 | J14: 1 | K14: 0 | L14: Typová činnost č. 3 | M14: 11 | O14: 0.1833333333 | P14: 0 | Q14: 0 | R14: =IF(F14="denně",Q14*G14*$B$96,IF(F14="týdně",Q14*G14*$B$97,IF(F14="měsíčně",Q14*G14*$B$98,IF(F14="čtvrtletně",Q14*G14*4*$B$99,IF(F14="ročně",Q14*G14*$B$99,G14*Q14*$B$99)))))*'Základní údaje'!$H$13*IF(K60=1,'Základní údaje'!$C$12,1) -> 0
A15: 024 -sklad | B15: 58 | D15: 1 | E15: 58 | F15: čtvrtletně | G15: 0.15 | J15: 1 | K15: 0 | L15: Typová činnost č. 3 | M15: 15 | O15: 0.25 | P15: 0 | Q15: 0 | R15: =IF(F15="denně",Q15*G15*$B$96,IF(F15="týdně",Q15*G15*$B$97,IF(F15="měsíčně",Q15*G15*$B$98,IF(F15="čtvrtletně",Q15*G15*4*$B$99,IF(F15="ročně",Q15*G15*$B$99,G15*Q15*$B$99)))))*'Základní údaje'!$H$13*IF(K61=1,'Základní údaje'!$C$12,1) -> 0
A16: 020 -dílna | B16: 56 | D16: 1 | E16: 56 | F16: měsíčně | G16: 0.15 | J16: 1 | K16: 0 | L16: Typová činnost č. 3 | M16: 20 | O16: 0.3333333333 | P16: 0 | Q16: 0 | R16: =IF(F16="denně",Q16*G16*$B$96,IF(F16="týdně",Q16*G16*$B$97,IF(F16="měsíčně",Q16*G16*$B$98,IF(F16="čtvrtletně",Q16*G16*4*$B$99,IF(F16="ročně",Q16*G16*$B$99,G16*Q16*$B$99)))))*'Základní údaje'!$H$13*IF(K62=1,'Základní údaje'!$C$12,1) -> 0
A17: 038 -údržba | B17: 23 | D17: 1 | E17: 23 | F17: měsíčně | G17: 0.15 | J17: 1 | K17: 0 | L17: Typová činnost č. 3 | M17: 10 | O17: 0.1666666667 | P17: 0 | Q17: 0 | R17: =IF(F17="denně",Q17*G17*$B$96,IF(F17="týdně",Q17*G17*$B$97,IF(F17="měsíčně",Q17*G17*$B$98,IF(F17="čtvrtletně",Q17*G17*4*$B$99,IF(F17="ročně",Q17*G17*$B$99,G17*Q17*$B$99)))))*'Základní údaje'!$H$13*IF(K63=1,'Základní údaje'!$C$12,1) -> 0
A18: wc + sprcha údržby | B18: 6 | D18: 1 | E18: 6 | F18: týdně | G18: 0.15 | J18: 1 | K18: 0 | L18: Typová činnost č. 14 a 15 | M18: 10 | O18: 0.1666666667 | P18: 0 | Q18: 0 | R18: =IF(F18="denně",Q18*G18*$B$96,IF(F18="týdně",Q18*G18*$B$97,IF(F18="měsíčně",Q18*G18*$B$98,IF(F18="čtvrtletně",Q18*G18*4*$B$99,IF(F18="ročně",Q18*G18*$B$99,G18*Q18*$B$99)))))*'Základní údaje'!$H$13*IF(K64=1,'Základní údaje'!$C$12,1) -> 0
A19: 036-sklad | B19: 23 | D19: 1 | E19: 23 | F19: týdně | G19: 0.15 | J19: 1 | K19: 0 | L19: Typová činnost č. 3 | M19: 6 | O19: 0.1 | P19: 0 | Q19: 0 | R19: =IF(F19="denně",Q19*G19*$B$96,IF(F19="týdně",Q19*G19*$B$97,IF(F19="měsíčně",Q19*G19*$B$98,IF(F19="čtvrtletně",Q19*G19*4*$B$99,IF(F19="ročně",Q19*G19*$B$99,G19*Q19*$B$99)))))*'Základní údaje'!$H$13*IF(K65=1,'Základní údaje'!$C$12,1) -> 0
A20: wc + sprcha sklad 36 | B20: 6 | D20: 1 | E20: 6 | F20: týdně | G20: 0.15 | J20: 1 | K20: 0 | L20: Typová činnost č. 14 a 15 | M20: 10 | O20: 0.1666666667 | P20: 0 | Q20: 0 | R20: =IF(F20="denně",Q20*G20*$B$96,IF(F20="týdně",Q20*G20*$B$97,IF(F20="měsíčně",Q20*G20*$B$98,IF(F20="čtvrtletně",Q20*G20*4*$B$99,IF(F20="ročně",Q20*G20*$B$99,G20*Q20*$B$99)))))*'Základní údaje'!$H$13*IF(K68=1,'Základní údaje'!$C$12,1) -> 0
A21: chodba suterén | B21: 151 | D21: 1 | E21: 151 | F21: týdně | G21: 1 | J21: 1 | K21: 0 | L21: Typová činnost č. 1 | M21: 50 | O21: 0.8333333333 | P21: 0 | Q21: 0 | R21: =IF(F21="denně",Q21*G21*$B$96,IF(F21="týdně",Q21*G21*$B$97,IF(F21="měsíčně",Q21*G21*$B$98,IF(F21="čtvrtletně",Q21*G21*4*$B$99,IF(F21="ročně",Q21*G21*$B$99,G21*Q21*$B$99)))))*'Základní údaje'!$H$13*IF(K69=1,'Základní údaje'!$C$12,1) -> 0
A22: 162 - sklad lůžkovin | B22: 49 | D22: 1 | E22: 49 | F22: týdně | G22: 0.15 | J22: 1 | K22: 0 | L22: Typová činnost č. 1 | M22: 12 | O22: 0.2 | P22: 0 | Q22: 0 | R22: =IF(F22="denně",Q22*G22*$B$96,IF(F22="týdně",Q22*G22*$B$97,IF(F22="měsíčně",Q22*G22*$B$98,IF(F22="čtvrtletně",Q22*G22*4*$B$99,IF(F22="ročně",Q22*G22*$B$99,G22*Q22*$B$99)))))*'Základní údaje'!$H$13*IF(K70=1,'Základní údaje'!$C$12,1) -> 0
A23: Přízemí
A24: recepce+balkon | B24: 54 | D24: 1 | E24: 54 | F24: denně | G24: 0.15 | J24: 1 | K24: 0 | L24: Typová činnost č. 2 a 3 | M24: 30 | O24: 0.5 | P24: =ROUND(IF(N24=0,M24/60*$B$2,N24/60*$B$2),0) -> 0 | Q24: 0 | R24: =IF(F24="denně",Q24*G24*$B$96,IF(F24="týdně",Q24*G24*$B$97,IF(F24="měsíčně",Q24*G24*$B$98,IF(F24="čtvrtletně",Q24*G24*4*$B$99,IF(F24="ročně",Q24*G24*$B$99,G24*Q24*$B$99)))))*'Základní údaje'!$H$13*IF(K72=1,'Základní údaje'!$C$12,1) -> 0
A25: společenská místnost- kuchyň+ soc.zař+ balkon | B25: 48 | D25: 1 | E25: 48 | F25: denně | G25: 0.15 | J25: 1 | K25: 0 | L25: Typová činnost č. 2, 3, 5, 14 a 15 | M25: 16 | O25: 0.2666666667 | P25: 0 | Q25: 0 | R25: =IF(F25="denně",Q25*G25*$B$96,IF(F25="týdně",Q25*G25*$B$97,IF(F25="měsíčně",Q25*G25*$B$98,IF(F25="čtvrtletně",Q25*G25*4*$B$99,IF(F25="ročně",Q25*G25*$B$99,G25*Q25*$B$99)))))*'Základní údaje'!$H$13*IF(K73=1,'Základní údaje'!$C$12,1) -> 0
A26: 2x kancelář(vedoucí, zástup) | B26: 38 | D26: 2 | E26: 76 | F26: týdně | G26: 0.15 | J26: 1 | K26: 0 | L26: Typová činnost č. 3 | M26: 19 | O26: 0.6333333333 | P26: 0 | Q26: 0 | R26: =IF(F26="denně",Q26*G26*$B$96,IF(F26="týdně",Q26*G26*$B$97,IF(F26="měsíčně",Q26*G26*$B$98,IF(F26="čtvrtletně",Q26*G26*4*$B$99,IF(F26="ročně",Q26*G26*$B$99,G26*Q26*$B$99)))))*'Základní údaje'!$H$13*IF(K74=1,'Základní údaje'!$C$12,1) -> 0
A27: předsíň | B27: 7 | D27: 1 | E27: 7 | F27: týdně | G27: 0.15 | J27: 1 | K27: 0 | L27: Typová činnost č. 3 | M27: 1 | O27: 0.01666666667 | P27: 0 | Q27: 0 | R27: =IF(F27="denně",Q27*G27*$B$96,IF(F27="týdně",Q27*G27*$B$97,IF(F27="měsíčně",Q27*G27*$B$98,IF(F27="čtvrtletně",Q27*G27*4*$B$99,IF(F27="ročně",Q27*G27*$B$99,G27*Q27*$B$99)))))*'Základní údaje'!$H$13*IF(K75=1,'Základní údaje'!$C$12,1) -> 0
A28: wc + sprcha (vedení) | B28: 5 | D28: 1 | E28: 5 | F28: týdně | G28: 0.15 | J28: 1 | K28: 0 | L28: Typová činnost č. 14 a 15 | M28: 8 | O28: 0.1333333333 | P28: 0 | Q28: 0 | R28: =IF(F28="denně",Q28*G28*$B$96,IF(F28="týdně",Q28*G28*$B$97,IF(F28="měsíčně",Q28*G28*$B$98,IF(F28="čtvrtletně",Q28*G28*4*$B$99,IF(F28="ročně",Q28*G28*$B$99,G28*Q28*$B$99)))))*'Základní údaje'!$H$13*IF(K76=1,'Základní údaje'!$C$12,1) -> 0
A29: chodba přízemí obě budovy | B29: 97 | D29: 1 | E29: 97 | F29: denně | G29: 0.15 | J29: 1 | K29: 0 | L29: Typová činnost č. 1 | M29: 16 | O29: 0.2666666667 | P29: 0 | Q29: 0 | R29: =IF(F29="denně",Q29*G29*$B$96,IF(F29="týdně",Q29*G29*$B$97,IF(F29="měsíčně",Q29*G29*$B$98,IF(F29="čtvrtletně",Q29*G29*4*$B$99,IF(F29="ročně",Q29*G29*$B$99,G29*Q29*$B$99)))))*'Základní údaje'!$H$13*IF(K77=1,'Základní údaje'!$C$12,1) -> 0
A30: vstupní hala | B30: 75 | D30: 1 | E30: 75 | F30: denně | G30: 0.15 | J30: 1 | K30: 0 | L30: Typová činnost č. 1 | M30: 31 | O30: 0.5166666667 | P30: 0 | Q30: 0 | R30: =IF(F30="denně",Q30*G30*$B$96,IF(F30="týdně",Q30*G30*$B$97,IF(F30="měsíčně",Q30*G30*$B$98,IF(F30="čtvrtletně",Q30*G30*4*$B$99,IF(F30="ročně",Q30*G30*$B$99,G30*Q30*$B$99)))))*'Základní údaje'!$H$13*IF(K79=1,'Základní údaje'!$C$12,1) -> 0
A31: vstupní schodiště přední | B31: 25 | D31: 1 | E31: 25 | F31: denně | G31: 0.15 | J31: 1 | K31: 0 | L31: Typová činnost č. 1 | M31: 10 | O31: 0.1666666667 | P31: 0 | Q31: 0 | R31: =IF(F31="denně",Q31*G31*$B$96,IF(F31="týdně",Q31*G31*$B$97,IF(F31="měsíčně",Q31*G31*$B$98,IF(F31="čtvrtletně",Q31*G31*4*$B$99,IF(F31="ročně",Q31*G31*$B$99,G31*Q31*$B$99)))))*'Základní údaje'!$H$13*IF(K80=1,'Základní údaje'!$C$12,1) -> 0
A32: vstupní schodiště zadní | B32: 12 | D32: 1 | E32: 12 | F32: týdně | G32: 0.15 | J32: 1 | K32: 0 | L32: Typová činnost č. 1 | M32: 5 | O32: 0.08333333333 | P32: 0 | Q32: 0 | R32: =IF(F32="denně",Q32*G32*$B$96,IF(F32="týdně",Q32*G32*$B$97,IF(F32="měsíčně",Q32*G32*$B$98,IF(F32="čtvrtletně",Q32*G32*4*$B$99,IF(F32="ročně",Q32*G32*$B$99,G32*Q32*$B$99)))))*'Základní údaje'!$H$13*IF(K81=1,'Základní údaje'!$C$12,1) -> 0
A33: Stálý hotel
A34: Komfort.buňky,soc.zařízení,kuchyň +balkon HOTEL | B34: 47 | D34: 38 | E34: 1786 | F34: sezonně | G34: 4 | H34: 39 | I34: 51 | J34: 1 | K34: 1 | L34: Typová činnost č. 8 | M34: 60 | O34: 38 | P34: =ROUND(IF(N34=0,M34/60*$B$2,N34/60*$B$2),0) -> 0 | Q34: =P34*D34 -> 0 | R34: =IF(F34="denně",Q34*G34*$B$96,IF(F34="týdně",Q34*G34*$B$97,IF(F34="měsíčně",Q34*G34*$B$98,IF(F34="čtvrtletně",Q34*G34*4*$B$99,IF(F34="ročně",Q34*G34*$B$99,G34*Q34*$B$99)))))*'Základní údaje'!$H$13*IF(K85=1,'Základní údaje'!$C$12,1) -> 0
A35: Komfort.buňky,soc.zařízení,kuchyň+balkon HOTEL | B35: 47 | D35: 38 | E35: 1786 | F35: sezonně | G35: 2 | H35: 52 | I35: 1 | J35: 1 | K35: 1 | L35: Typová činnost č. 8 | M35: 60 | O35: 38 | P35: 0 | Q35: 0 | R35: =IF(F35="denně",Q35*G35*$B$96,IF(F35="týdně",Q35*G35*$B$97,IF(F35="měsíčně",Q35*G35*$B$98,IF(F35="čtvrtletně",Q35*G35*4*$B$99,IF(F35="ročně",Q35*G35*$B$99,G35*Q35*$B$99)))))*'Základní údaje'!$H$13*IF(K86=1,'Základní údaje'!$C$12,1) -> 0
A36: Komfort.buňky,soc.zařízení,kuchyň+balkon HOTEL | B36: 47 | D36: 38 | E36: 1786 | F36: sezonně | G36: 2 | H36: 2 | I36: 22 | J36: 1 | K36: 1 | L36: Typová činnost č. 8 | M36: 60 | O36: 38 | P36: 0 | Q36: 0 | R36: =IF(F36="denně",Q36*G36*$B$96,IF(F36="týdně",Q36*G36*$B$97,IF(F36="měsíčně",Q36*G36*$B$98,IF(F36="čtvrtletně",Q36*G36*4*$B$99,IF(F36="ročně",Q36*G36*$B$99,G36*Q36*$B$99)))))*'Základní údaje'!$H$13*IF(K87=1,'Základní údaje'!$C$12,1) -> 0
A37: Komfort.buňky,soc.zařízení,kuchyň+balkon HOTEL - průběžně | B37: 47 | D37: 38 | E37: =B37*D37+C37*D37 -> 1786 | F37: sezonně | G37: 40 | H37: 23 | I37: 38 | J37: 1 | K37: 1 | L37: Typová činnost č. 9 | M37: 30 | O37: =IF(N37=0,M37*D37/60,N37*D37/60) -> 19 | P37: =ROUND(IF(N37=0,M37/60*$B$2,N37/60*$B$2),0) -> 0 | Q37: =P37*D37 -> 0 | R37: =IF(F37="denně",Q37*G37*$B$96,IF(F37="týdně",Q37*G37*$B$97,IF(F37="měsíčně",Q37*G37*$B$98,IF(F37="čtvrtletně",Q37*G37*4*$B$99,IF(F37="ročně",Q37*G37*$B$99,G37*Q37*$B$99)))))*'Základní údaje'!$H$13*IF(K87=1,'Základní údaje'!$C$12,1) -> 0
A38: Komfort.buňky,soc.zařízení,kuchyň+balkon HOTEL - po vystěhování | B38: 47 | D38: 38 | E38: 1786 | F38: sezonně | G38: 40 | H38: 23 | I38: 38 | J38: 1 | K38: 1 | L38: Typová činnost č. 8 | M38: 60 | O38: 38 | P38: 0 | Q38: 0 | R38: =IF(F38="denně",Q38*G38*$B$96,IF(F38="týdně",Q38*G38*$B$97,IF(F38="měsíčně",Q38*G38*$B$98,IF(F38="čtvrtletně",Q38*G38*4*$B$99,IF(F38="ročně",Q38*G38*$B$99,G38*Q38*$B$99)))))*'Základní údaje'!$H$13*IF(K88=1,'Základní údaje'!$C$12,1) -> 0
A39: Studentská kapacita | M39: 0
A40: Standard.buňka | M40: 0
A41: buňka -koupelna | B41: 4 | D41: 119 | E41: 476 | F41: ročně | G41: 0.33 | J41: 1 | K41: 0 | L41: Typová činnost č. 15 | M41: 15 | O41: 29.75 | P41: =ROUND(IF(N41=0,M41/60*$B$2,N41/60*$B$2),0) -> 0 | Q41: =P41*D41 -> 0 | R41: =IF(F41="denně",Q41*G41*$B$96,IF(F41="týdně",Q41*G41*$B$97,IF(F41="měsíčně",Q41*G41*$B$98,IF(F41="čtvrtletně",Q41*G41*4*$B$99,IF(F41="ročně",Q41*G41*$B$99,G41*Q41*$B$99)))))*'Základní údaje'!$H$13*IF(K54=1,'Základní údaje'!$C$12,1) -> 0
A42: buňka-wc | B42: 1 | D42: 119 | E42: 119 | F42: ročně | G42: 0.33 | J42: 1 | K42: 0 | L42: Typová činnost č. 14 | M42: 5 | O42: 9.916666667 | P42: 0 | Q42: 0 | R42: =IF(F42="denně",Q42*G42*$B$96,IF(F42="týdně",Q42*G42*$B$97,IF(F42="měsíčně",Q42*G42*$B$98,IF(F42="čtvrtletně",Q42*G42*4*$B$99,IF(F42="ročně",Q42*G42*$B$99,G42*Q42*$B$99)))))*'Základní údaje'!$H$13*IF(K55=1,'Základní údaje'!$C$12,1) -> 0
A43: buňka-pokoj | B43: 14 | D43: =2*119 -> 238 | E43: 3332 | F43: ročně | G43: 0.33 | J43: 1 | K43: 0 | L43: Typová činnost č. 6 | M43: 15 | O43: 59.5 | P43: 0 | Q43: 0 | R43: =IF(F43="denně",Q43*G43*$B$96,IF(F43="týdně",Q43*G43*$B$97,IF(F43="měsíčně",Q43*G43*$B$98,IF(F43="čtvrtletně",Q43*G43*4*$B$99,IF(F43="ročně",Q43*G43*$B$99,G43*Q43*$B$99)))))*'Základní údaje'!$H$13*IF(K56=1,'Základní údaje'!$C$12,1) -> 0
A44: buňka-předsíň | B44: 14 | D44: 119 | E44: 1666 | F44: ročně | G44: 0.33 | J44: 1 | K44: 0 | L44: Typová činnost č. 7 | M44: 15 | O44: 29.75 | P44: 0 | Q44: 0 | R44: =IF(F44="denně",Q44*G44*$B$96,IF(F44="týdně",Q44*G44*$B$97,IF(F44="měsíčně",Q44*G44*$B$98,IF(F44="čtvrtletně",Q44*G44*4*$B$99,IF(F44="ročně",Q44*G44*$B$99,G44*Q44*$B$99)))))*'Základní údaje'!$H$13*IF(K56=1,'Základní údaje'!$C$12,1) -> 0
A45: buňka-balkon | B45: 5 | D45: 119 | E45: 595 | F45: ročně | G45: 0.33 | J45: 1 | K45: 0 | L45: Typová činnost č. 2 | M45: 6 | O45: 11.9 | P45: 0 | Q45: 0 | R45: =IF(F45="denně",Q45*G45*$B$96,IF(F45="týdně",Q45*G45*$B$97,IF(F45="měsíčně",Q45*G45*$B$98,IF(F45="čtvrtletně",Q45*G45*4*$B$99,IF(F45="ročně",Q45*G45*$B$99,G45*Q45*$B$99)))))*'Základní údaje'!$H$13*IF(K57=1,'Základní údaje'!$C$12,1) -> 0
A46: Komfort buňka | M46: 0
A47: koupelna | B47: 4 | D47: 32 | E47: =B47*D47+C47*D47 -> 128 | F47: ročně | G47: 0.33 | J47: 1 | K47: 0 | L47: Typová činnost č. 15 | M47: 15 | O47: =IF(N47=0,M47*D47/60,N47*D47/60) -> 8 | P47: =ROUND(IF(N47=0,M47/60*$B$2,N47/60*$B$2),0) -> 0 | Q47: =P47*D47 -> 0 | R47: =IF(F47="denně",Q47*G47*$B$96,IF(F47="týdně",Q47*G47*$B$97,IF(F47="měsíčně",Q47*G47*$B$98,IF(F47="čtvrtletně",Q47*G47*4*$B$99,IF(F47="ročně",Q47*G47*$B$99,G47*Q47*$B$99)))))*'Základní údaje'!$H$13*IF(K65=1,'Základní údaje'!$C$12,1) -> 0
A48: wc | B48: 1 | D48: 32 | E48: =B48*D48+C48*D48 -> 32 | F48: ročně | G48: 0.33 | J48: 1 | K48: 0 | L48: Typová činnost č. 14 | M48: 5 | O48: =IF(N48=0,M48*D48/60,N48*D48/60) -> 2.666666667 | P48: 0 | Q48: =P48*D48 -> 0 | R48: =IF(F48="denně",Q48*G48*$B$96,IF(F48="týdně",Q48*G48*$B$97,IF(F48="měsíčně",Q48*G48*$B$98,IF(F48="čtvrtletně",Q48*G48*4*$B$99,IF(F48="ročně",Q48*G48*$B$99,G48*Q48*$B$99)))))*'Základní údaje'!$H$13*IF(K62=1,'Základní údaje'!$C$12,1) -> 0
A49: pokoj | B49: 14 | D49: =2*32 -> 64 | E49: 896 | F49: ročně | G49: 0.33 | J49: 1 | K49: 0 | L49: Typová činnost č. 6 | M49: 15 | O49: 16 | P49: 0 | Q49: 0 | R49: =IF(F49="denně",Q49*G49*$B$96,IF(F49="týdně",Q49*G49*$B$97,IF(F49="měsíčně",Q49*G49*$B$98,IF(F49="čtvrtletně",Q49*G49*4*$B$99,IF(F49="ročně",Q49*G49*$B$99,G49*Q49*$B$99)))))*'Základní údaje'!$H$13*IF(K69=1,'Základní údaje'!$C$12,1) -> 0
A50: předsíň | B50: 14 | D50: 32 | E50: 448 | F50: ročně | G50: 0.33 | J50: 1 | K50: 0 | L50: Typová činnost č. 7 | M50: 15 | O50: 8 | P50: 0 | Q50: 0 | R50: =IF(F50="denně",Q50*G50*$B$96,IF(F50="týdně",Q50*G50*$B$97,IF(F50="měsíčně",Q50*G50*$B$98,IF(F50="čtvrtletně",Q50*G50*4*$B$99,IF(F50="ročně",Q50*G50*$B$99,G50*Q50*$B$99)))))*'Základní údaje'!$H$13*IF(K70=1,'Základní údaje'!$C$12,1) -> 0
A51: balkon | B51: 5 | D51: 32 | E51: 160 | F51: ročně | G51: 0.33 | J51: 1 | K51: 0 | L51: Typová činnost č. 2 | M51: 6 | O51: 3.2 | P51: 0 | Q51: 0 | R51: =IF(F51="denně",Q51*G51*$B$96,IF(F51="týdně",Q51*G51*$B$97,IF(F51="měsíčně",Q51*G51*$B$98,IF(F51="čtvrtletně",Q51*G51*4*$B$99,IF(F51="ročně",Q51*G51*$B$99,G51*Q51*$B$99)))))*'Základní údaje'!$H$13*IF(K71=1,'Základní údaje'!$C$12,1) -> 0
A52: Jednolůžkové pokoje | M52: 0
A53: pokoj jednolůžkový-wc + koupelna | B53: 3 | D53: 10 | E53: 30 | F53: ročně | G53: 0.1 | J53: 1 | K53: 0 | L53: Typová činnost č. 14 a 15 | M53: 10 | O53: 1.666666667 | P53: 0 | Q53: 0 | R53: =IF(F53="denně",Q53*G53*$B$96,IF(F53="týdně",Q53*G53*$B$97,IF(F53="měsíčně",Q53*G53*$B$98,IF(F53="čtvrtletně",Q53*G53*4*$B$99,IF(F53="ročně",Q53*G53*$B$99,G53*Q53*$B$99)))))*'Základní údaje'!$H$13*IF(K73=1,'Základní údaje'!$C$12,1) -> 0
A54: pokoj jednolůžkový | B54: 6 | D54: 10 | E54: 60 | F54: ročně | G54: 0.1 | J54: 1 | K54: 0 | L54: Typová činnost č. 6 | M54: 5 | O54: 0.8333333333 | P54: 0 | Q54: 0 | R54: =IF(F54="denně",Q54*G54*$B$96,IF(F54="týdně",Q54*G54*$B$97,IF(F54="měsíčně",Q54*G54*$B$98,IF(F54="čtvrtletně",Q54*G54*4*$B$99,IF(F54="ročně",Q54*G54*$B$99,G54*Q54*$B$99)))))*'Základní údaje'!$H$13*IF(K74=1,'Základní údaje'!$C$12,1) -> 0
A55: pokoj jednolůžkový-předsíň | B55: 2 | D55: 10 | E55: 20 | F55: ročně | G55: 0.1 | J55: 1 | K55: 0 | L55: Typová činnost č. 7 | M55: 3 | O55: 0.5 | P55: 0 | Q55: 0 | R55: =IF(F55="denně",Q55*G55*$B$96,IF(F55="týdně",Q55*G55*$B$97,IF(F55="měsíčně",Q55*G55*$B$98,IF(F55="čtvrtletně",Q55*G55*4*$B$99,IF(F55="ročně",Q55*G55*$B$99,G55*Q55*$B$99)))))*'Základní údaje'!$H$13*IF(K75=1,'Základní údaje'!$C$12,1) -> 0
A56: Studovny velké | M56: 0
A57: studovna velká 6. patro | B57: 49 | D57: 1 | E57: 49 | F57: týdně | G57: 2 | J57: 1 | K57: 0 | L57: Typová činnost č. 3 | M57: 15 | O57: 0.25 | P57: 0 | Q57: 0 | R57: =IF(F57="denně",Q57*G57*$B$96,IF(F57="týdně",Q57*G57*$B$97,IF(F57="měsíčně",Q57*G57*$B$98,IF(F57="čtvrtletně",Q57*G57*4*$B$99,IF(F57="ročně",Q57*G57*$B$99,G57*Q57*$B$99)))))*'Základní údaje'!$H$13*IF(K79=1,'Základní údaje'!$C$12,1) -> 0
A58: studovna velká 7. patro | B58: 49 | D58: 1 | E58: 49 | F58: týdně | G58: 2 | J58: 1 | K58: 0 | L58: Typová činnost č. 3 | M58: 15 | O58: 0.25 | P58: 0 | Q58: 0 | R58: =IF(F58="denně",Q58*G58*$B$96,IF(F58="týdně",Q58*G58*$B$97,IF(F58="měsíčně",Q58*G58*$B$98,IF(F58="čtvrtletně",Q58*G58*4*$B$99,IF(F58="ročně",Q58*G58*$B$99,G58*Q58*$B$99)))))*'Základní údaje'!$H$13*IF(K80=1,'Základní údaje'!$C$12,1) -> 0
A59: studovna velká 8. patro | B59: 49 | D59: 1 | E59: 49 | F59: týdně | G59: 2 | J59: 1 | K59: 0 | L59: Typová činnost č. 3 | M59: 15 | O59: 0.25 | P59: 0 | Q59: 0 | R59: =IF(F59="denně",Q59*G59*$B$96,IF(F59="týdně",Q59*G59*$B$97,IF(F59="měsíčně",Q59*G59*$B$98,IF(F59="čtvrtletně",Q59*G59*4*$B$99,IF(F59="ročně",Q59*G59*$B$99,G59*Q59*$B$99)))))*'Základní údaje'!$H$13*IF(K81=1,'Základní údaje'!$C$12,1) -> 0
A60: studovna velká 9. patro | B60: 49 | D60: 1 | E60: 49 | F60: týdně | G60: 2 | J60: 1 | K60: 0 | L60: Typová činnost č. 3 | M60: 15 | O60: 0.25 | P60: 0 | Q60: 0 | R60: =IF(F60="denně",Q60*G60*$B$96,IF(F60="týdně",Q60*G60*$B$97,IF(F60="měsíčně",Q60*G60*$B$98,IF(F60="čtvrtletně",Q60*G60*4*$B$99,IF(F60="ročně",Q60*G60*$B$99,G60*Q60*$B$99)))))*'Základní údaje'!$H$13*IF(K84=1,'Základní údaje'!$C$12,1) -> 0
A61: studovna velká 10. patro | B61: 49 | D61: 1 | E61: 49 | F61: týdně | G61: 2 | J61: 1 | K61: 0 | L61: Typová činnost č. 3 | M61: 15 | O61: 0.25 | P61: 0 | Q61: =P61*D61 -> 0 | R61: =IF(F61="denně",Q61*G61*$B$96,IF(F61="týdně",Q61*G61*$B$97,IF(F61="měsíčně",Q61*G61*$B$98,IF(F61="čtvrtletně",Q61*G61*4*$B$99,IF(F61="ročně",Q61*G61*$B$99,G61*Q61*$B$99)))))*'Základní údaje'!$H$13*IF(K83=1,'Základní údaje'!$C$12,1) -> 0
A62: studovna velká 11. patro | B62: 49 | D62: 1 | E62: 49 | F62: týdně | G62: 2 | J62: 1 | K62: 0 | L62: Typová činnost č. 3 | M62: 15 | O62: 0.25 | P62: 0 | Q62: 0 | R62: =IF(F62="denně",Q62*G62*$B$96,IF(F62="týdně",Q62*G62*$B$97,IF(F62="měsíčně",Q62*G62*$B$98,IF(F62="čtvrtletně",Q62*G62*4*$B$99,IF(F62="ročně",Q62*G62*$B$99,G62*Q62*$B$99)))))*'Základní údaje'!$H$13*IF(K85=1,'Základní údaje'!$C$12,1) -> 0
A63: studovna velká - přilehlé balkony | B63: 5 | D63: 6 | E63: =B63*D63+C63*D63 -> 30 | F63: týdně | G63: 1 | J63: 1 | K63: 0 | L63: Typová činnost č. 2 | M63: 1 | O63: 0.1 | P63: 0 | Q63: 0 | R63: =IF(F63="denně",Q63*G63*$B$96,IF(F63="týdně",Q63*G63*$B$97,IF(F63="měsíčně",Q63*G63*$B$98,IF(F63="čtvrtletně",Q63*G63*4*$B$99,IF(F63="ročně",Q63*G63*$B$99,G63*Q63*$B$99)))))*'Základní údaje'!$H$13*IF(K86=1,'Základní údaje'!$C$12,1) -> 0
A64: wc k učebnám | B64: 7 | D64: 4 | E64: 28 | F64: denně | G64: 1 | J64: 1 | K64: 0 | L64: Typová činnost č. 14 | M64: 10 | O64: 0.6666666667 | P64: 0 | Q64: 0 | R64: =IF(F64="denně",Q64*G64*$B$96,IF(F64="týdně",Q64*G64*$B$97,IF(F64="měsíčně",Q64*G64*$B$98,IF(F64="čtvrtletně",Q64*G64*4*$B$99,IF(F64="ročně",Q64*G64*$B$99,G64*Q64*$B$99)))))*'Základní údaje'!$H$13*IF(K84=1,'Základní údaje'!$C$12,1) -> 0
A65: Studovny malé | M65: 0
A66: studovna malá 7. patro | B66: 22 | D66: 1 | E66: =B66*D66+C66*D66 -> 22 | F66: týdně | G66: 2 | J66: 1 | K66: 0 | L66: Typová činnost č. 3 | M66: 10 | O66: =IF(N66=0,M66*D66/60,N66*D66/60) -> 0.1666666667 | P66: =ROUND(IF(N66=0,M66/60*$B$2,N66/60*$B$2),0) -> 0 | Q66: =P66*D66 -> 0 | R66: =IF(F66="denně",Q66*G66*$B$96,IF(F66="týdně",Q66*G66*$B$97,IF(F66="měsíčně",Q66*G66*$B$98,IF(F66="čtvrtletně",Q66*G66*4*$B$99,IF(F66="ročně",Q66*G66*$B$99,G66*Q66*$B$99)))))*'Základní údaje'!$H$13*IF(K84=1,'Základní údaje'!$C$12,1) -> 0
A67: studovna malá 8. patro | B67: 22 | D67: 1 | E67: 22 | F67: týdně | G67: 2 | J67: 1 | K67: 0 | L67: Typová činnost č. 3 | M67: 10 | O67: 0.1666666667 | P67: 0 | Q67: 0 | R67: =IF(F67="denně",Q67*G67*$B$96,IF(F67="týdně",Q67*G67*$B$97,IF(F67="měsíčně",Q67*G67*$B$98,IF(F67="čtvrtletně",Q67*G67*4*$B$99,IF(F67="ročně",Q67*G67*$B$99,G67*Q67*$B$99)))))*'Základní údaje'!$H$13*IF(K83=1,'Základní údaje'!$C$12,1) -> 0
A68: studovna malá 9. patro | B68: 22 | D68: 1 | E68: =B68*D68+C68*D68 -> 22 | F68: týdně | G68: 2 | J68: 1 | K68: 0 | L68: Typová činnost č. 3 | M68: 10 | O68: 0.1666666667 | P68: 0 | Q68: 0 | R68: =IF(F68="denně",Q68*G68*$B$96,IF(F68="týdně",Q68*G68*$B$97,IF(F68="měsíčně",Q68*G68*$B$98,IF(F68="čtvrtletně",Q68*G68*4*$B$99,IF(F68="ročně",Q68*G68*$B$99,G68*Q68*$B$99)))))*'Základní údaje'!$H$13*IF(K85=1,'Základní údaje'!$C$12,1) -> 0
A69: studovna malá 10. patro | B69: 22 | D69: 1 | E69: =B69*D69+C69*D69 -> 22 | F69: týdně | G69: 2 | J69: 1 | K69: 0 | L69: Typová činnost č. 3 | M69: 10 | O69: 0.1666666667 | P69: 0 | Q69: 0 | R69: =IF(F69="denně",Q69*G69*$B$96,IF(F69="týdně",Q69*G69*$B$97,IF(F69="měsíčně",Q69*G69*$B$98,IF(F69="čtvrtletně",Q69*G69*4*$B$99,IF(F69="ročně",Q69*G69*$B$99,G69*Q69*$B$99)))))*'Základní údaje'!$H$13*IF(K86=1,'Základní údaje'!$C$12,1) -> 0
A70: studovna malá 11. patro | B70: 22 | D70: 1 | E70: =B70*D70+C70*D70 -> 22 | F70: týdně | G70: 2 | J70: 1 | K70: 0 | L70: Typová činnost č. 3 | M70: 10 | O70: 0.1666666667 | P70: 0 | Q70: 0 | R70: =IF(F70="denně",Q70*G70*$B$96,IF(F70="týdně",Q70*G70*$B$97,IF(F70="měsíčně",Q70*G70*$B$98,IF(F70="čtvrtletně",Q70*G70*4*$B$99,IF(F70="ročně",Q70*G70*$B$99,G70*Q70*$B$99)))))*'Základní údaje'!$H$13*IF(K87=1,'Základní údaje'!$C$12,1) -> 0
A71: dámská posilovna+balkon | B71: 55 | D71: 1 | E71: 55 | F71: týdně | G71: 2 | J71: 1 | K71: 0 | L71: Typová činnost č. 2 a 3 | M71: 20 | O71: 0.3333333333 | P71: 0 | Q71: 0 | R71: =IF(F71="denně",Q71*G71*$B$96,IF(F71="týdně",Q71*G71*$B$97,IF(F71="měsíčně",Q71*G71*$B$98,IF(F71="čtvrtletně",Q71*G71*4*$B$99,IF(F71="ročně",Q71*G71*$B$99,G71*Q71*$B$99)))))*'Základní údaje'!$H$13*IF(K88=1,'Základní údaje'!$C$12,1) -> 0
A72: pánská posilovna+balkon | B72: 55 | D72: 1 | E72: 55 | F72: týdně | G72: 2 | J72: 1 | K72: 0 | L72: Typová činnost č. 2 a 3 | M72: 20 | O72: 0.3333333333 | P72: 0 | Q72: 0 | R72: =IF(F72="denně",Q72*G72*$B$96,IF(F72="týdně",Q72*G72*$B$97,IF(F72="měsíčně",Q72*G72*$B$98,IF(F72="čtvrtletně",Q72*G72*4*$B$99,IF(F72="ročně",Q72*G72*$B$99,G72*Q72*$B$99)))))*'Základní údaje'!$H$13*IF(K89=1,'Základní údaje'!$C$12,1) -> 0
A73: tělocvična+balkon | B73: 55 | D73: 1 | E73: 55 | F73: týdně | G73: 2 | J73: 1 | K73: 0 | L73: Typová činnost č. 2 a 3 | M73: 15 | O73: 0.25 | P73: 0 | Q73: 0 | R73: =IF(F73="denně",Q73*G73*$B$96,IF(F73="týdně",Q73*G73*$B$97,IF(F73="měsíčně",Q73*G73*$B$98,IF(F73="čtvrtletně",Q73*G73*4*$B$99,IF(F73="ročně",Q73*G73*$B$99,G73*Q73*$B$99)))))*'Základní údaje'!$H$13*IF(K90=1,'Základní údaje'!$C$12,1) -> 0
A74: Chodby a schodiště
A75: středové schodiště | B75: 11 | D75: 6 | E75: 66 | F75: denně | G75: 1 | J75: 1 | K75: 0 | L75: Typová činnost č. 1 | M75: 5 | O75: 0.5 | P75: 0 | Q75: 0 | R75: =IF(F75="denně",Q75*G75*$B$96,IF(F75="týdně",Q75*G75*$B$97,IF(F75="měsíčně",Q75*G75*$B$98,IF(F75="čtvrtletně",Q75*G75*4*$B$99,IF(F75="ročně",Q75*G75*$B$99,G75*Q75*$B$99)))))*'Základní údaje'!$H$13*IF(K85=1,'Základní údaje'!$C$12,1) -> 0
A76: zábradlí - středové schodiště | C76: 1 | D76: 6 | E76: =B76*D76+C76*D76 -> 6 | F76: týdně | G76: 1 | J76: 1 | K76: 0 | L76: omýt | M76: 3 | O76: 0.3 | P76: 0 | Q76: 0 | R76: =IF(F76="denně",Q76*G76*$B$96,IF(F76="týdně",Q76*G76*$B$97,IF(F76="měsíčně",Q76*G76*$B$98,IF(F76="čtvrtletně",Q76*G76*4*$B$99,IF(F76="ročně",Q76*G76*$B$99,G76*Q76*$B$99)))))*'Základní údaje'!$H$13*IF(K86=1,'Základní údaje'!$C$12,1) -> 0
A77: levé schodiště | B77: 9 | D77: 11 | E77: 99 | F77: denně | G77: 1 | J77: 1 | K77: 0 | L77: Typová činnost č. 1 | M77: 5 | O77: 0.9166666667 | P77: 0 | Q77: 0 | R77: =IF(F77="denně",Q77*G77*$B$96,IF(F77="týdně",Q77*G77*$B$97,IF(F77="měsíčně",Q77*G77*$B$98,IF(F77="čtvrtletně",Q77*G77*4*$B$99,IF(F77="ročně",Q77*G77*$B$99,G77*Q77*$B$99)))))*'Základní údaje'!$H$13*IF(K87=1,'Základní údaje'!$C$12,1) -> 0
A78: zábradlí - levé schodiště | C78: 1 | D78: 11 | E78: =B78*D78+C78*D78 -> 11 | F78: týdně | G78: 1 | J78: 1 | K78: 0 | L78: omýt | M78: 3 | O78: =IF(N78=0,M78*D78/60,N78*D78/60) -> 0.55 | P78: =ROUND(IF(N78=0,M78/60*$B$2,N78/60*$B$2),0) -> 0 | Q78: =P78*D78 -> 0 | R78: =IF(F78="denně",Q78*G78*$B$96,IF(F78="týdně",Q78*G78*$B$97,IF(F78="měsíčně",Q78*G78*$B$98,IF(F78="čtvrtletně",Q78*G78*4*$B$99,IF(F78="ročně",Q78*G78*$B$99,G78*Q78*$B$99)))))*'Základní údaje'!$H$13*IF(K88=1,'Základní údaje'!$C$12,1) -> 0
A79: pravé schodiště | B79: 9 | D79: 12 | E79: 108 | F79: denně | G79: 1 | J79: 1 | K79: 0 | L79: Typová činnost č. 1 | M79: 5 | O79: 1 | P79: 0 | Q79: =P79*D79 -> 0 | R79: =IF(F79="denně",Q79*G79*$B$96,IF(F79="týdně",Q79*G79*$B$97,IF(F79="měsíčně",Q79*G79*$B$98,IF(F79="čtvrtletně",Q79*G79*4*$B$99,IF(F79="ročně",Q79*G79*$B$99,G79*Q79*$B$99)))))*'Základní údaje'!$H$13*IF(K88=1,'Základní údaje'!$C$12,1) -> 0
A80: zábradlí - pravé schodiště | C80: 1 | D80: 12 | E80: 12 | F80: týdně | G80: 1 | J80: 1 | K80: 0 | L80: omýt | M80: 3 | O80: 0.6 | P80: 0 | Q80: 0 | R80: =IF(F80="denně",Q80*G80*$B$96,IF(F80="týdně",Q80*G80*$B$97,IF(F80="měsíčně",Q80*G80*$B$98,IF(F80="čtvrtletně",Q80*G80*4*$B$99,IF(F80="ročně",Q80*G80*$B$99,G80*Q80*$B$99)))))*'Základní údaje'!$H$13*IF(K92=1,'Základní údaje'!$C$12,1) -> 0
A81: schodiště na střechu, levá+pravá budova | B81: 9 | D81: 4 | E81: 36 | F81: čtvrtletně | G81: 0.15 | J81: 1 | K81: 0 | L81: Typová činnost č. 1 | M81: 5 | O81: 0.3333333333 | P81: 0 | Q81: 0 | R81: =IF(F81="denně",Q81*G81*$B$96,IF(F81="týdně",Q81*G81*$B$97,IF(F81="měsíčně",Q81*G81*$B$98,IF(F81="čtvrtletně",Q81*G81*4*$B$99,IF(F81="ročně",Q81*G81*$B$99,G81*Q81*$B$99)))))*'Základní údaje'!$H$13*IF(K93=1,'Základní údaje'!$C$12,1) -> 0
A82: chodby 10 p. | B82: 89 | D82: 1 | E82: =B82*D82+C82*D82 -> 89 | F82: denně | G82: 0.15 | J82: 1 | K82: 0 | L82: Typová činnost č. 1 | M82: 15 | O82: =IF(N82=0,M82*D82/60,N82*D82/60) -> 0.25 | P82: =ROUND(IF(N82=0,M82/60*$B$2,N82/60*$B$2),0) -> 0 | Q82: =P82*D82 -> 0 | R82: =IF(F82="denně",Q82*G82*$B$96,IF(F82="týdně",Q82*G82*$B$97,IF(F82="měsíčně",Q82*G82*$B$98,IF(F82="čtvrtletně",Q82*G82*4*$B$99,IF(F82="ročně",Q82*G82*$B$99,G82*Q82*$B$99)))))*'Základní údaje'!$H$13*IF(K99=1,'Základní údaje'!$C$12,1) -> 0
A83: chodby 11 p. | B83: 94 | D83: 1 | E83: 94 | F83: denně | G83: 0.15 | J83: 1 | K83: 0 | L83: Typová činnost č. 1 | M83: 16 | O83: 0.2666666667 | P83: 0 | Q83: 0 | R83: =IF(F83="denně",Q83*G83*$B$96,IF(F83="týdně",Q83*G83*$B$97,IF(F83="měsíčně",Q83*G83*$B$98,IF(F83="čtvrtletně",Q83*G83*4*$B$99,IF(F83="ročně",Q83*G83*$B$99,G83*Q83*$B$99)))))*'Základní údaje'!$H$13*IF(K99=1,'Základní údaje'!$C$12,1) -> 0
A84: chodby 12 p. | B84: 33 | D84: 1 | E84: =B84*D84+C84*D84 -> 33 | F84: denně | G84: 0.15 | J84: 1 | K84: 0 | L84: Typová činnost č. 1 | M84: 6 | O84: =IF(N84=0,M84*D84/60,N84*D84/60) -> 0.1 | P84: =ROUND(IF(N84=0,M84/60*$B$2,N84/60*$B$2),0) -> 0 | Q84: =P84*D84 -> 0 | R84: =IF(F84="denně",Q84*G84*$B$96,IF(F84="týdně",Q84*G84*$B$97,IF(F84="měsíčně",Q84*G84*$B$98,IF(F84="čtvrtletně",Q84*G84*4*$B$99,IF(F84="ročně",Q84*G84*$B$99,G84*Q84*$B$99)))))*'Základní údaje'!$H$13*IF(K98=1,'Základní údaje'!$C$12,1) -> 0
A85: chodby 2-9 p. | B85: 89 | D85: 8 | E85: 712 | F85: denně | G85: 1 | J85: 1 | K85: 0 | L85: Typová činnost č. 1 | M85: 15 | O85: 2 | P85: 0 | Q85: 0 | R85: =IF(F85="denně",Q85*G85*$B$96,IF(F85="týdně",Q85*G85*$B$97,IF(F85="měsíčně",Q85*G85*$B$98,IF(F85="čtvrtletně",Q85*G85*4*$B$99,IF(F85="ročně",Q85*G85*$B$99,G85*Q85*$B$99)))))*'Základní údaje'!$H$13*IF(K100=1,'Základní údaje'!$C$12,1) -> 0
A87: okna | C87: 1 | D87: =(11*4+2+10*4+10*4+4)*2+12*4+20 -> 328 | E87: 328 | F87: ročně | G87: 1 | L87: Typová činnost č. 12 | M87: 10 | O87: 54.66666667 | P87: 0 | Q87: 0 | R87: =IF(F87="denně",Q87*G87*$B$96,IF(F87="týdně",Q87*G87*$B$97,IF(F87="měsíčně",Q87*G87*$B$98,IF(F87="čtvrtletně",Q87*G87*4*$B$99,IF(F87="ročně",Q87*G87*$B$99,G87*Q87*$B$99)))))*'Základní údaje'!$H$13*IF(K109=1,'Základní údaje'!$C$12,1) -> 0
A88: Balkonové dveře | C88: 1 | D88: =(11*4+2+10*4+10*4+4)*2+12*4 -> 308 | E88: 308 | F88: ročně | G88: 1 | L88: Typová činnost č. 12 | M88: 10 | O88: =IF(N88=0,M88*D88/60,N88*D88/60) -> 51.33333333 | P88: 0 | Q88: =P88*D88 -> 0 | R88: =IF(F88="denně",Q88*G88*$B$96,IF(F88="týdně",Q88*G88*$B$97,IF(F88="měsíčně",Q88*G88*$B$98,IF(F88="čtvrtletně",Q88*G88*4*$B$99,IF(F88="ročně",Q88*G88*$B$99,G88*Q88*$B$99)))))*'Základní údaje'!$H$13*IF(K110=1,'Základní údaje'!$C$12,1) -> 0
A89: Přebírání buněk a pokojů při vystěhování | C89: 1 | D89: =74+111 -> 185 | E89: 185 | F89: sezonně | G89: 1 | H89: 26 | I89: 28 | L89: Typová činnost č. 10 | M89: 5 | O89: 15.41666667 | P89: 0 | Q89: 0 | R89: =IF(F89="denně",Q89*G89*$B$96,IF(F89="týdně",Q89*G89*$B$97,IF(F89="měsíčně",Q89*G89*$B$98,IF(F89="čtvrtletně",Q89*G89*4*$B$99,IF(F89="ročně",Q89*G89*$B$99,G89*Q89*$B$99)))))*'Základní údaje'!$H$13*IF(K111=1,'Základní údaje'!$C$12,1) -> 0
A90: Přebírání buněk a pokojů při vystěhování, roznesení prádla | C90: 1 | D90: 185 | E90: =B90*D90+C90*D90 -> 185 | F90: sezonně | G90: 1 | H90: 35 | I90: 37 | L90: Typová činnost č. 10 | M90: 6 | O90: 18.5 | P90: 0 | Q90: 0 | R90: =IF(F90="denně",Q90*G90*$B$96,IF(F90="týdně",Q90*G90*$B$97,IF(F90="měsíčně",Q90*G90*$B$98,IF(F90="čtvrtletně",Q90*G90*4*$B$99,IF(F90="ročně",Q90*G90*$B$99,G90*Q90*$B$99)))))*'Základní údaje'!$H$13*IF(K112=1,'Základní údaje'!$C$12,1) -> 0
A91: vstupní dveře do koleje | B91: =3.3*2.5 -> 8.25 | D91: 3 | E91: 24.75 | F91: týdně | G91: 0.15 | L91: Typová činnost č. 12 | M91: 20 | O91: 1 | P91: 0 | Q91: 0 | R91: =IF(F91="denně",Q91*G91*$B$96,IF(F91="týdně",Q91*G91*$B$97,IF(F91="měsíčně",Q91*G91*$B$98,IF(F91="čtvrtletně",Q91*G91*4*$B$99,IF(F91="ročně",Q91*G91*$B$99,G91*Q91*$B$99)))))*'Základní údaje'!$H$13*IF(K113=1,'Základní údaje'!$C$12,1) -> 0
A92: kontrola pokoje před nastěhováním | C92: 1 | D92: 185 | E92: 185 | F92: ročně | G92: 1 | H92: 26 | I92: 37 | L92: Čisté ložní prádlo položit na postel a uklidit případné nedostatky v úklidu. | M92: 10 | O92: 30.83333333 | P92: 0 | Q92: 0 | R92: =IF(F92="denně",Q92*G92*$B$96,IF(F92="týdně",Q92*G92*$B$97,IF(F92="měsíčně",Q92*G92*$B$98,IF(F92="čtvrtletně",Q92*G92*4*$B$99,IF(F92="ročně",Q92*G92*$B$99,G92*Q92*$B$99)))))*'Základní údaje'!$H$13*IF(K114=1,'Základní údaje'!$C$12,1) -> 0
A94: Plocha celkem | B94: =SUMPRODUCT(B4:B92,D4:D92) -> 19915.75 | C94: [m²]
A95: Počet kusů celkem | B95: =SUMPRODUCT(C4:C92,D4:D92) -> 1222 | C95: [-]
A96: Počet pracovních dnů úklidu: | B96: =NETWORKDAYS($C$1,$D$1,$A$103:$A$195) -> 1005
A97: Počet týdnů úklidu: | B97: =B99*52 -> 208
A98: Počet měsíců úklidu: | B98: =B99*12 -> 48
A99: Počet let úklidu | B99: =YEAR(D1)-YEAR(C1) -> 4
A100: CENA CELKEM: | B100: =ROUND(SUM(R4:R92),0) -> 0 | E100: [Kč]
A102: svátky: | B102: četnost úklidu | C102: označení | D102: období úklidu | G102: Kritéria
A103: 2023-04-07 | B103: denně | C103: 0 | D103: 1. Q | G103: =$F$3 -> uklízí se
A104: 2023-04-10 | B104: týdně | C104: 1 | D104: 2. Q | G104: =B103 -> denně
A105: 2023-05-01 | B105: měsíčně | D105: 3. Q
A106: 2023-05-08 | B106: čtvrtletně | D106: 4. Q | G106: =$F$3 -> uklízí se
A107: 2023-07-05 | B107: ročně | D107: leden | G107: =B104 -> týdně
A108: 2023-07-06 | B108: sezonně | D108: únor
A109: 2023-09-28 | D109: březen | G109: =$F$3 -> uklízí se
A110: 2023-11-17 | D110: duben | G110: =B105 -> měsíčně
A111: 2023-12-25 | D111: květen
A112: 2023-12-26 | D112: červen | G112: =$F$3 -> uklízí se
A113: 2024-01-01 | D113: červenec | G113: =B106 -> čtvrtletně
A114: 2024-03-29 | D114: srpen
A115: 2024-04-01 | D115: září | G115: =$F$3 -> uklízí se
A116: 2024-05-01 | D116: říjen | G116: =B107 -> ročně
A117: 2024-05-08 | D117: listopat
A118: 2024-07-05 | D118: prosinec
A119: 2024-10-28
A120: 2024-12-24
A121: 2024-12-26
A122: 2024-12-26
A123: 2025-01-01
A124: 2025-04-18
A125: 2025-04-21
A126: 2025-10-28
A127: 2025-11-17
A128: 2025-12-24
A129: 2025-12-25
A130: 2025-12-26
A131: 2026-01-01
A132: 2026-04-03
A133: 2026-04-06
A134: 2026-05-01
A135: 2026-05-08
A136: 2026-07-05
A137: 2026-07-06
A138: 2026-09-28
A139: 2026-10-28
A140: 2026-11-17
A141: 2026-12-24
A142: 2026-12-25
A143: 2026-12-26
A144: 2027-01-01
A145: 2027-03-26
A146: 2027-03-29
A147: 2027-05-01
A148: 2027-05-08
A149: 2027-07-05
A150: 2027-07-06
A151: 2027-09-28
A152: 2027-10-28
A153: 2027-11-17
A154: 2027-12-24
A155: 2027-12-25
A156: 2027-12-26
A157: 2028-01-01
A158: 2028-04-14
A159: 2028-04-17
A160: 2028-05-01
A161: 2028-05-08
A162: 2028-07-05
A163: 2028-07-06
A164: 2028-09-28
A165: 2028-10-28
A166: 2028-11-17
A167: 2028-12-24
A168: 2028-12-25
A169: 2028-12-26
A170: 2029-01-01
A171: 2029-03-30
A172: 2029-04-02
A173: 2029-05-01
A174: 2029-05-08
A175: 2029-07-05
A176: 2029-07-06
A177: 2029-09-28
A178: 2029-10-28
A179: 2029-11-17
A180: 2029-12-24
A181: 2029-12-25
A182: 2029-12-26
A183: 2030-01-01
A184: 1930-04-19
A185: 1930-04-22
A186: 2030-05-01
A187: 2030-05-08
A188: 2030-07-05
A189: 2030-07-06
A190: 2030-09-28
A191: 2030-10-28
A192: 2030-11-17
A193: 2030-12-24
A194: 2030-12-25
A195: 2030-12-26

Sheet Karty úklidu
A1: Tisk: Ctrl+d
A2: Karta úklidu | D2: ='Rozpis úklidu'!A1 -> kolej: Thalerova, VŠE
A3: DENNÍ ÚKLID DNE: | B3: =NOW() -> 2025-01-22T13:48:11.870 | C3: =CHOOSE(WEEKDAY(B3,2),"pondělí","úterý","středa","čtvrtek","pátek","sobota","neděle") -> středa
A4: Úklidová jednotka | B4: počet úklidových jednotek | C4: Doba úklidu [hod.] | D4: Popis činnosti | E4: cena celkem za všechny úklidové jednotky (prac. dny) [Kč] | F4: Správně uklizené jednotky | G4: Smluvní pokuta [Kč] | H4: Poznámka
A5: ='Rozpis úklidu'!A64 -> wc k učebnám | B5: ='Rozpis úklidu'!D64*'Rozpis úklidu'!G64 -> 4 | C5: =IF('Rozpis úklidu'!N64=0,'Rozpis úklidu'!M64*B5/60,'Rozpis úklidu'!N64*B5/60) -> 0.6666666667 | D5: ='Rozpis úklidu'!L64 -> Typová činnost č. 14 | E5: ='Rozpis úklidu'!P64*F5 -> 0 | F5: =B5 -> 4 | G5: =IF(F5<B5,(B5-F5)*('Rozpis úklidu'!P64)*2,0) -> 0
A6: ='Rozpis úklidu'!A75 -> středové schodiště | B6: ='Rozpis úklidu'!D75*'Rozpis úklidu'!G75 -> 6 | C6: =IF('Rozpis úklidu'!N75=0,'Rozpis úklidu'!M75*B6/60,'Rozpis úklidu'!N75*B6/60) -> 0.5 | D6: ='Rozpis úklidu'!L75 -> Typová činnost č. 1 | E6: ='Rozpis úklidu'!P75*F6 -> 0 | F6: =B6 -> 6 | G6: =IF(F6<B6,(B6-F6)*('Rozpis úklidu'!P75)*2,0) -> 0
A7: ='Rozpis úklidu'!A77 -> levé schodiště | B7: ='Rozpis úklidu'!D77*'Rozpis úklidu'!G77 -> 11 | C7: =IF('Rozpis úklidu'!N77=0,'Rozpis úklidu'!M77*B7/60,'Rozpis úklidu'!N77*B7/60) -> 0.9166666667 | D7: ='Rozpis úklidu'!L77 -> Typová činnost č. 1 | E7: ='Rozpis úklidu'!P77*F7 -> 0 | F7: =B7 -> 11 | G7: =IF(F7<B7,(B7-F7)*('Rozpis úklidu'!P77)*2,0) -> 0
A8: ='Rozpis úklidu'!A79 -> pravé schodiště | B8: ='Rozpis úklidu'!D79*'Rozpis úklidu'!G79 -> 12 | C8: =IF('Rozpis úklidu'!N79=0,'Rozpis úklidu'!M79*B8/60,'Rozpis úklidu'!N79*B8/60) -> 1 | D8: ='Rozpis úklidu'!L79 -> Typová činnost č. 1 | E8: ='Rozpis úklidu'!P79*F8 -> 0 | F8: =B8 -> 12 | G8: =IF(F8<B8,(B8-F8)*('Rozpis úklidu'!P79)*2,0) -> 0
A9: ='Rozpis úklidu'!A85 -> chodby 2-9 p. | B9: ='Rozpis úklidu'!D85*'Rozpis úklidu'!G85 -> 8 | C9: =IF('Rozpis úklidu'!N85=0,'Rozpis úklidu'!M85*B9/60,'Rozpis úklidu'!N85*B9/60) -> 2 | D9: ='Rozpis úklidu'!L85 -> Typová činnost č. 1 | E9: ='Rozpis úklidu'!P85*F9 -> 0 | F9: =B9 -> 8 | G9: =IF(F9<B9,(B9-F9)*('Rozpis úklidu'!P85)*2,0) -> 0
A10: ='Rozpis úklidu'!A41 -> buňka -koupelna | C10: =IF('Rozpis úklidu'!N41=0,'Rozpis úklidu'!M41*B10/60,'Rozpis úklidu'!N41*B10/60) -> 0 | D10: ='Rozpis úklidu'!L41 -> Typová činnost č. 15 | E10: ='Rozpis úklidu'!P41*F10 -> 0 | F10: =B10 -> 0 | G10: =IF(F10<B10,(B10-F10)*('Rozpis úklidu'!P41)*2,0) -> 0
A11: ='Rozpis úklidu'!A42 -> buňka-wc | C11: =IF('Rozpis úklidu'!N42=0,'Rozpis úklidu'!M42*B11/60,'Rozpis úklidu'!N42*B11/60) -> 0 | D11: ='Rozpis úklidu'!L42 -> Typová činnost č. 14 | E11: ='Rozpis úklidu'!P42*F11 -> 0 | F11: =B11 -> 0 | G11: =IF(F11<B11,(B11-F11)*('Rozpis úklidu'!P42)*2,0) -> 0
A12: ='Rozpis úklidu'!A43 -> buňka-pokoj | C12: =IF('Rozpis úklidu'!N43=0,'Rozpis úklidu'!M43*B12/60,'Rozpis úklidu'!N43*B12/60) -> 0 | D12: ='Rozpis úklidu'!L43 -> Typová činnost č. 6 | E12: ='Rozpis úklidu'!P43*F12 -> 0 | F12: 0 | G12: =IF(F12<B12,(B12-F12)*('Rozpis úklidu'!P43)*2,0) -> 0
A13: ='Rozpis úklidu'!A44 -> buňka-předsíň | C13: =IF('Rozpis úklidu'!N44=0,'Rozpis úklidu'!M44*B13/60,'Rozpis úklidu'!N44*B13/60) -> 0 | D13: ='Rozpis úklidu'!L44 -> Typová činnost č. 7 | E13: ='Rozpis úklidu'!P44*F13 -> 0 | F13: 0 | G13: =IF(F13<B13,(B13-F13)*('Rozpis úklidu'!P44)*2,0) -> 0
A14: ='Rozpis úklidu'!A45 -> buňka-balkon | C14: =IF('Rozpis úklidu'!N45=0,'Rozpis úklidu'!M45*B14/60,'Rozpis úklidu'!N45*B14/60) -> 0 | D14: ='Rozpis úklidu'!L45 -> Typová činnost č. 2 | E14: ='Rozpis úklidu'!P45*F14 -> 0 | F14: 0 | G14: =IF(F14<B14,(B14-F14)*('Rozpis úklidu'!P45)*2,0) -> 0
A15: ='Rozpis úklidu'!A89 -> Přebírání buněk a pokojů při vystěhování | C15: =IF('Rozpis úklidu'!N89=0,'Rozpis úklidu'!M89*B15/60,'Rozpis úklidu'!N89*B15/60) -> 0 | D15: ='Rozpis úklidu'!L89 -> Typová činnost č. 10 | E15: ='Rozpis úklidu'!P89*F15 -> 0 | F15: =B15 -> 0 | G15: =IF(F15<B15,(B15-F15)*('Rozpis úklidu'!P89)*2,0) -> 0
A16: ='Rozpis úklidu'!A90 -> Přebírání buněk a pokojů při vystěhování, roznesení prádla | C16: =IF('Rozpis úklidu'!N90=0,'Rozpis úklidu'!M90*B16/60,'Rozpis úklidu'!N90*B16/60) -> 0 | D16: ='Rozpis úklidu'!L90 -> Typová činnost č. 10 | E16: ='Rozpis úklidu'!P90*F16 -> 0 | F16: =B16 -> 0 | G16: =IF(F16<B16,(B16-F16)*('Rozpis úklidu'!P90)*2,0) -> 0
A17: ='Rozpis úklidu'!A92 -> kontrola pokoje před nastěhováním | C17: =IF('Rozpis úklidu'!N92=0,'Rozpis úklidu'!M92*B17/60,'Rozpis úklidu'!N92*B17/60) -> 0 | D17: ='Rozpis úklidu'!L92 -> Čisté ložní prádlo položit na postel a uklidit případné nedostatky v úklidu. | E17: ='Rozpis úklidu'!P92*F17 -> 0 | F17: =B17 -> 0 | G17: =IF(F17<B17,(B17-F17)*('Rozpis úklidu'!P92)*2,0) -> 0
A18: Operativní úklidové práce dle požadavku vedoucí koleje | B18: ='Základní údaje'!B11 -> 0 | C18: =F18/60 -> 0 | E18: =B18/60*F18 -> 0 | F18: 0
A19: Celkem hodin (den / rozpočítaný týden a měsíc): | C19: =CONCATENATE(FIXED(SUM(C5:C18),2)," / ",FIXED(SUM(C5:C18)+C40,2)) -> 5,08 / 6,53 | D19: K FAKTURACI CELKEM: | E19: =SUM(E5:E18) -> 0 | G19: =SUM(G5:G18) -> 0
A20: Podpis vedoucí směny: | D20: Podpis zástupce vedení koleje: | H20: =E19*20.5+E40*4.25 -> 0
A21: Tisk: Ctrl+t
A22: Karta úklidu | D22: ='Rozpis úklidu'!A1 -> kolej: Thalerova, VŠE
A23: TÝDENNÍ ÚKLID TÝDEN: | B23: =WEEKNUM(TODAY(),1) -> 4 | D23: =(NOW()) -> 2025-01-22T13:48:11.870
A24: Úklidová jednotka | B24: počet úklidových jednotek | C24: Doba úklidu [hod.] | D24: Popis činnosti | E24: cena celkem za všechny úklidové jednotky (prac. dny) [Kč] | F24: Správně uklizené jednotky | G24: Smluvní pokuta [Kč] | H24: Poznámka
A25: ='Rozpis úklidu'!A21 -> chodba suterén | B25: ='Rozpis úklidu'!D21*'Rozpis úklidu'!G21 -> 1 | C25: =IF('Rozpis úklidu'!N21=0,'Rozpis úklidu'!M21*B25/60,'Rozpis úklidu'!N21*B25/60) -> 0.8333333333 | D25: ='Rozpis úklidu'!L21 -> Typová činnost č. 1 | E25: ='Rozpis úklidu'!P21*F25 -> 0 | F25: =B25 -> 1 | G25: =IF(F25<B25,(B25-F25)*('Rozpis úklidu'!P21)*2,0) -> 0
A26: ='Rozpis úklidu'!A76 -> zábradlí - středové schodiště | B26: ='Rozpis úklidu'!D76*'Rozpis úklidu'!G76 -> 6 | C26: =IF('Rozpis úklidu'!N76=0,'Rozpis úklidu'!M76*B26/60,'Rozpis úklidu'!N76*B26/60) -> 0.3 | D26: ='Rozpis úklidu'!L76 -> omýt | E26: ='Rozpis úklidu'!P76*F26 -> 0 | F26: =B26 -> 6 | G26: =IF(F26<B26,(B26-F26)*('Rozpis úklidu'!P76)*2,0) -> 0
A27: ='Rozpis úklidu'!A78 -> zábradlí - levé schodiště | B27: ='Rozpis úklidu'!D78*'Rozpis úklidu'!G78 -> 11 | C27: =IF('Rozpis úklidu'!N78=0,'Rozpis úklidu'!M78*B27/60,'Rozpis úklidu'!N78*B27/60) -> 0.55 | D27: ='Rozpis úklidu'!L78 -> omýt | E27: ='Rozpis úklidu'!P78*F27 -> 0 | F27: 11 | G27: =IF(F27<B27,(B27-F27)*('Rozpis úklidu'!P78)*2,0) -> 0
A28: ='Rozpis úklidu'!A80 -> zábradlí - pravé schodiště | B28: ='Rozpis úklidu'!D80*'Rozpis úklidu'!G80 -> 12 | C28: =IF('Rozpis úklidu'!N80=0,'Rozpis úklidu'!M80*B28/60,'Rozpis úklidu'!N80*B28/60) -> 0.6 | D28: ='Rozpis úklidu'!L80 -> omýt | E28: ='Rozpis úklidu'!P80*F28 -> 0 | F28: 12 | G28: =IF(F28<B28,(B28-F28)*('Rozpis úklidu'!P80)*2,0) -> 0
A29: ='Rozpis úklidu'!A57 -> studovna velká 6. patro | B29: ='Rozpis úklidu'!D57*'Rozpis úklidu'!G57 -> 2 | C29: =IF('Rozpis úklidu'!N57=0,'Rozpis úklidu'!M57*B29/60,'Rozpis úklidu'!N57*B29/60) -> 0.5 | D29: ='Rozpis úklidu'!L57 -> Typová činnost č. 3 | E29: ='Rozpis úklidu'!P57*F29 -> 0 | F29: =B29 -> 2 | G29: =IF(F29<B29,(B29-F29)*('Rozpis úklidu'!P57)*2,0) -> 0
A30: ='Rozpis úklidu'!A58 -> studovna velká 7. patro | B30: ='Rozpis úklidu'!D58*'Rozpis úklidu'!G58 -> 2 | C30: =IF('Rozpis úklidu'!N58=0,'Rozpis úklidu'!M58*B30/60,'Rozpis úklidu'!N58*B30/60) -> 0.5 | D30: ='Rozpis úklidu'!L58 -> Typová činnost č. 3 | E30: ='Rozpis úklidu'!P58*F30 -> 0 | F30: =B30 -> 2 | G30: =IF(F30<B30,(B30-F30)*('Rozpis úklidu'!P58)*2,0) -> 0
A31: ='Rozpis úklidu'!A59 -> studovna velká 8. patro | B31: ='Rozpis úklidu'!D59*'Rozpis úklidu'!G59 -> 2 | C31: =IF('Rozpis úklidu'!N59=0,'Rozpis úklidu'!M59*B31/60,'Rozpis úklidu'!N59*B31/60) -> 0.5 | D31: ='Rozpis úklidu'!L59 -> Typová činnost č. 3 | E31: ='Rozpis úklidu'!P59*F31 -> 0 | F31: 2 | G31: =IF(F31<B31,(B31-F31)*('Rozpis úklidu'!P59)*2,0) -> 0
A32: ='Rozpis úklidu'!A60 -> studovna velká 9. patro | B32: ='Rozpis úklidu'!D60*'Rozpis úklidu'!G60 -> 2 | C32: =IF('Rozpis úklidu'!N60=0,'Rozpis úklidu'!M60*B32/60,'Rozpis úklidu'!N60*B32/60) -> 0.5 | D32: ='Rozpis úklidu'!L60 -> Typová činnost č. 3 | E32: ='Rozpis úklidu'!P60*F32 -> 0 | F32: 2 | G32: =IF(F32<B32,(B32-F32)*('Rozpis úklidu'!P60)*2,0) -> 0
A33: ='Rozpis úklidu'!A63 -> studovna velká - přilehlé balkony | B33: ='Rozpis úklidu'!D63*'Rozpis úklidu'!G63 -> 6 | C33: =IF('Rozpis úklidu'!N63=0,'Rozpis úklidu'!M63*B33/60,'Rozpis úklidu'!N63*B33/60) -> 0.1 | D33: ='Rozpis úklidu'!L63 -> Typová činnost č. 2 | E33: ='Rozpis úklidu'!P63*F33 -> 0 | F33: 6 | G33: =IF(F33<B33,(B33-F33)*('Rozpis úklidu'!P63)*2,0) -> 0
A34: ='Rozpis úklidu'!A66 -> studovna malá 7. patro | B34: ='Rozpis úklidu'!D66*'Rozpis úklidu'!G66 -> 2 | C34: =IF('Rozpis úklidu'!N66=0,'Rozpis úklidu'!M66*B34/60,'Rozpis úklidu'!N64*B34/60) -> 0.3333333333 | D34: ='Rozpis úklidu'!L66 -> Typová činnost č. 3 | E34: ='Rozpis úklidu'!P66*F34 -> 0 | F34: =B34 -> 2 | G34: =IF(F34<B34,(B34-F34)*('Rozpis úklidu'!P66)*2,0) -> 0
A35: ='Rozpis úklidu'!A67 -> studovna malá 8. patro | B35: ='Rozpis úklidu'!D67*'Rozpis úklidu'!G67 -> 2 | C35: =IF('Rozpis úklidu'!N67=0,'Rozpis úklidu'!M67*B35/60,'Rozpis úklidu'!N65*B35/60) -> 0.3333333333 | D35: ='Rozpis úklidu'!L67 -> Typová činnost č. 3 | E35: ='Rozpis úklidu'!P67*F35 -> 0 | F35: =B35 -> 2 | G35: =IF(F35<B35,(B35-F35)*('Rozpis úklidu'!P67)*2,0) -> 0
A36: ='Rozpis úklidu'!A68 -> studovna malá 9. patro | B36: ='Rozpis úklidu'!D68*'Rozpis úklidu'!G68 -> 2 | C36: =IF('Rozpis úklidu'!N68=0,'Rozpis úklidu'!M68*B36/60,'Rozpis úklidu'!N68*B36/60) -> 0.3333333333 | D36: ='Rozpis úklidu'!L68 -> Typová činnost č. 3 | E36: ='Rozpis úklidu'!P68*F36 -> 0 | F36: 2 | G36: =IF(F36<B36,(B36-F36)*('Rozpis úklidu'!P68)*2,0) -> 0
A37: ='Rozpis úklidu'!A71 -> dámská posilovna+balkon | B37: ='Rozpis úklidu'!D71*'Rozpis úklidu'!G71 -> 2 | C37: =IF('Rozpis úklidu'!N71=0,'Rozpis úklidu'!M71*B37/60,'Rozpis úklidu'!N71*B37/60) -> 0.6666666667 | D37: ='Rozpis úklidu'!L71 -> Typová činnost č. 2 a 3 | E37: ='Rozpis úklidu'!P71*F37 -> 0 | F37: 2 | G37: =IF(F37<B37,(B37-F37)*('Rozpis úklidu'!P71)*2,0) -> 0
A38: ='Rozpis úklidu'!A72 -> pánská posilovna+balkon | B38: ='Rozpis úklidu'!D72*'Rozpis úklidu'!G72 -> 2 | C38: =IF('Rozpis úklidu'!N72=0,'Rozpis úklidu'!M72*B38/60,'Rozpis úklidu'!N72*B38/60) -> 0.6666666667 | D38: ='Rozpis úklidu'!L72 -> Typová činnost č. 2 a 3 | E38: ='Rozpis úklidu'!P72*F38 -> 0 | F38: 2 | G38: =IF(F38<B38,(B38-F38)*('Rozpis úklidu'!P72)*2,0) -> 0
A39: ='Rozpis úklidu'!A73 -> tělocvična+balkon | B39: ='Rozpis úklidu'!D73*'Rozpis úklidu'!G73 -> 2 | C39: =IF('Rozpis úklidu'!N73=0,'Rozpis úklidu'!M73*B39/60,'Rozpis úklidu'!N73*B39/60) -> 0.5 | D39: ='Rozpis úklidu'!L73 -> Typová činnost č. 2 a 3 | E39: ='Rozpis úklidu'!P73*F39 -> 0 | F39: 2 | G39: =IF(F39<B39,(B39-F39)*('Rozpis úklidu'!P73)*2,0) -> 0
B40: celkem [hodin/den] | C40: =SUM(C25:C39)/5 -> 1.443333333 | D40: K FAKTURACI CELKEM: | E40: =SUM(E25:E39) -> 0 | G40: =SUM(G25:G39) -> 0
A41: Podpis vedoucí směny: | D41: Podpis zástupce vedení koleje:
A42: Tisk: Ctrl+p
A43: Karta úklidu | D43: ='Rozpis úklidu'!A1 -> kolej: Thalerova, VŠE
A44: VÝPOMOC DEN: | B44: =NOW() -> 2025-01-22T13:48:11.870 | C44: =CHOOSE(WEEKDAY(B44,2),"pondělí","úterý","středa","čtvrtek","pátek","sobota","neděle") -> středa
A45: Úklidová jednotka | B45: počet úklidových jednotek | C45: Doba úklidu [hod.] | D45: Popis činnosti | E45: cena celkem za všechny úklidové jednotky (prac. dny) [Kč] | F45: Správně uklizené jednotky | G45: Smluvní pokuta [Kč] | H45: Poznámka
A46: =CONCATENATE('Rozpis úklidu'!A5," / frekvence: ",'Rozpis úklidu'!F5) -> výtah / frekvence: denně | C46: =IF('Rozpis úklidu'!N5=0,'Rozpis úklidu'!M5*B46/60,'Rozpis úklidu'!N5*B46/60) -> 0 | D46: ='Rozpis úklidu'!L5 -> Typová činnost č. 11 | E46: ='Rozpis úklidu'!P5*F46 -> 0 | F46: =B46 -> 0 | G46: =IF(F46<B46,(B46-F46)*('Rozpis úklidu'!P5)*2,0) -> 0
A47: =CONCATENATE('Rozpis úklidu'!A6," / frekvence: ",'Rozpis úklidu'!F6) -> 010 -velká prádelna / frekvence: denně | C47: =IF('Rozpis úklidu'!N6=0,'Rozpis úklidu'!M6*B47/60,'Rozpis úklidu'!N6*B47/60) -> 0 | D47: ='Rozpis úklidu'!L6 -> Typová činnost č. 4 | E47: ='Rozpis úklidu'!P6*F47 -> 0 | F47: =B47 -> 0 | G47: =IF(F47<B47,(B47-F47)*('Rozpis úklidu'!P6)*2,0) -> 0
A48: =CONCATENATE('Rozpis úklidu'!A7," / frekvence: ",'Rozpis úklidu'!F7) -> 010 - sušárna+ sušičky / frekvence: denně | C48: =IF('Rozpis úklidu'!N7=0,'Rozpis úklidu'!M7*B48/60,'Rozpis úklidu'!N7*B48/60) -> 0 | D48: ='Rozpis úklidu'!L7 -> Typová činnost č. 3 | E48: ='Rozpis úklidu'!P7*F48 -> 0 | F48: 0 | G48: =IF(F48<B48,(B48-F48)*('Rozpis úklidu'!P7)*2,0) -> 0
A49: =CONCATENATE('Rozpis úklidu'!A8," / frekvence: ",'Rozpis úklidu'!F8) -> 031- sklad / frekvence: čtvrtletně | C49: =IF('Rozpis úklidu'!N8=0,'Rozpis úklidu'!M8*B49/60,'Rozpis úklidu'!N8*B49/60) -> 0 | D49: ='Rozpis úklidu'!L8 -> Typová činnost č. 3 | E49: ='Rozpis úklidu'!P8*F49 -> 0 | F49: 0 | G49: =IF(F49<B49,(B49-F49)*('Rozpis úklidu'!P8)*2,0) -> 0
A50: =CONCATENATE('Rozpis úklidu'!A9," / frekvence: ",'Rozpis úklidu'!F9) -> kotelna / frekvence: čtvrtletně | C50: =IF('Rozpis úklidu'!N9=0,'Rozpis úklidu'!M9*B50/60,'Rozpis úklidu'!N9*B50/60) -> 0 | D50: ='Rozpis úklidu'!L9 -> Typová činnost č. 3 | E50: ='Rozpis úklidu'!P9*F50 -> 0 | F50: 0 | G50: =IF(F50<B50,(B50-F50)*('Rozpis úklidu'!P9)*2,0) -> 0
A51: =CONCATENATE('Rozpis úklidu'!A10," / frekvence: ",'Rozpis úklidu'!F10) -> 011 -sklad nábytku / frekvence: čtvrtletně | C51: =IF('Rozpis úklidu'!N10=0,'Rozpis úklidu'!M10*B51/60,'Rozpis úklidu'!N10*B51/60) -> 0 | D51: ='Rozpis úklidu'!L10 -> Typová činnost č. 3 | E51: ='Rozpis úklidu'!P10*F51 -> 0 | F51: 0 | G51: =IF(F51<B51,(B51-F51)*('Rozpis úklidu'!P10)*2,0) -> 0
A52: =CONCATENATE('Rozpis úklidu'!A11," / frekvence: ",'Rozpis úklidu'!F11) -> 056 -sklad lednice / frekvence: čtvrtletně | C52: =IF('Rozpis úklidu'!N11=0,'Rozpis úklidu'!M11*B52/60,'Rozpis úklidu'!N11*B52/60) -> 0 | D52: ='Rozpis úklidu'!L11 -> Typová činnost č. 3 | E52: ='Rozpis úklidu'!P11*F52 -> 0 | F52: 0 | G52: =IF(F52<B52,(B52-F52)*('Rozpis úklidu'!P11)*2,0) -> 0
A53: =CONCATENATE('Rozpis úklidu'!A12," / frekvence: ",'Rozpis úklidu'!F12) -> 046 -sklad prádla / frekvence: týdně | C53: =IF('Rozpis úklidu'!N12=0,'Rozpis úklidu'!M12*B53/60,'Rozpis úklidu'!N12*B53/60) -> 0 | D53: ='Rozpis úklidu'!L12 -> Typová činnost č. 3 | E53: ='Rozpis úklidu'!P12*F53 -> 0 | F53: 0 | G53: =IF(F53<B53,(B53-F53)*('Rozpis úklidu'!P12)*2,0) -> 0
A54: =CONCATENATE('Rozpis úklidu'!A13," / frekvence: ",'Rozpis úklidu'!F13) -> 037 -sklad prádla -odpisy / frekvence: čtvrtletně | C54: =IF('Rozpis úklidu'!N13=0,'Rozpis úklidu'!M13*B54/60,'Rozpis úklidu'!N13*B54/60) -> 0 | D54: ='Rozpis úklidu'!L13 -> Typová činnost č. 3 | E54: ='Rozpis úklidu'!P13*F54 -> 0 | F54: 0 | G54: =IF(F54<B54,(B54-F54)*('Rozpis úklidu'!P13)*2,0) -> 0
A55: =CONCATENATE('Rozpis úklidu'!A14," / frekvence: ",'Rozpis úklidu'!F14) -> 053 -sklad drogerie / frekvence: čtvrtletně | C55: =IF('Rozpis úklidu'!N14=0,'Rozpis úklidu'!M14*B55/60,'Rozpis úklidu'!N14*B55/60) -> 0 | D55: ='Rozpis úklidu'!L14 -> Typová činnost č. 3 | E55: ='Rozpis úklidu'!P14*F55 -> 0 | F55: 0 | G55: =IF(F55<B55,(B55-F55)*('Rozpis úklidu'!P14)*2,0) -> 0
A56: =CONCATENATE('Rozpis úklidu'!A15," / frekvence: ",'Rozpis úklidu'!F15) -> 024 -sklad / frekvence: čtvrtletně | C56: =IF('Rozpis úklidu'!N15=0,'Rozpis úklidu'!M15*B56/60,'Rozpis úklidu'!N15*B56/60) -> 0 | D56: ='Rozpis úklidu'!L15 -> Typová činnost č. 3 | E56: ='Rozpis úklidu'!P15*F56 -> 0 | F56: 0 | G56: =IF(F56<B56,(B56-F56)*('Rozpis úklidu'!P15)*2,0) -> 0
A57: =CONCATENATE('Rozpis úklidu'!A16," / frekvence: ",'Rozpis úklidu'!F16) -> 020 -dílna / frekvence: měsíčně | C57: =IF('Rozpis úklidu'!N16=0,'Rozpis úklidu'!M16*B57/60,'Rozpis úklidu'!N16*B57/60) -> 0 | D57: ='Rozpis úklidu'!L16 -> Typová činnost č. 3 | E57: ='Rozpis úklidu'!P16*F57 -> 0 | F57: 0 | G57: =IF(F57<B57,(B57-F57)*('Rozpis úklidu'!P16)*2,0) -> 0
A58: =CONCATENATE('Rozpis úklidu'!A17," / frekvence: ",'Rozpis úklidu'!F17) -> 038 -údržba / frekvence: měsíčně | C58: =IF('Rozpis úklidu'!N17=0,'Rozpis úklidu'!M17*B58/60,'Rozpis úklidu'!N17*B58/60) -> 0 | D58: ='Rozpis úklidu'!L17 -> Typová činnost č. 3 | E58: ='Rozpis úklidu'!P17*F58 -> 0 | F58: 0 | G58: =IF(F58<B58,(B58-F58)*('Rozpis úklidu'!P17)*2,0) -> 0
A59: =CONCATENATE('Rozpis úklidu'!A18," / frekvence: ",'Rozpis úklidu'!F18) -> wc + sprcha údržby / frekvence: týdně | C59: =IF('Rozpis úklidu'!N18=0,'Rozpis úklidu'!M18*B59/60,'Rozpis úklidu'!N18*B59/60) -> 0 | D59: ='Rozpis úklidu'!L18 -> Typová činnost č. 14 a 15 | E59: ='Rozpis úklidu'!P18*F59 -> 0 | F59: 0 | G59: =IF(F59<B59,(B59-F59)*('Rozpis úklidu'!P18)*2,0) -> 0
A60: =CONCATENATE('Rozpis úklidu'!A19," / frekvence: ",'Rozpis úklidu'!F19) -> 036-sklad / frekvence: týdně | C60: =IF('Rozpis úklidu'!N19=0,'Rozpis úklidu'!M19*B60/60,'Rozpis úklidu'!N19*B60/60) -> 0 | D60: ='Rozpis úklidu'!L19 -> Typová činnost č. 3 | E60: ='Rozpis úklidu'!P19*F60 -> 0 | F60: 0 | G60: =IF(F60<B60,(B60-F60)*('Rozpis úklidu'!P19)*2,0) -> 0
A61: =CONCATENATE('Rozpis úklidu'!A20," / frekvence: ",'Rozpis úklidu'!F20) -> wc + sprcha sklad 36 / frekvence: týdně | C61: =IF('Rozpis úklidu'!N20=0,'Rozpis úklidu'!M20*B61/60,'Rozpis úklidu'!N20*B61/60) -> 0 | D61: ='Rozpis úklidu'!L20 -> Typová činnost č. 14 a 15 | E61: ='Rozpis úklidu'!P20*F61 -> 0 | F61: 0 | G61: =IF(F61<B61,(B61-F61)*('Rozpis úklidu'!P20)*2,0) -> 0
A62: =CONCATENATE('Rozpis úklidu'!A22," / frekvence: ",'Rozpis úklidu'!F22) -> 162 - sklad lůžkovin / frekvence: týdně | C62: =IF('Rozpis úklidu'!N22=0,'Rozpis úklidu'!M22*B62/60,'Rozpis úklidu'!N22*B62/60) -> 0 | D62: ='Rozpis úklidu'!L22 -> Typová činnost č. 1 | E62: ='Rozpis úklidu'!P22*F62 -> 0 | F62: 0 | G62: =IF(F62<B62,(B62-F62)*('Rozpis úklidu'!P22)*2,0) -> 0
A63: =CONCATENATE('Rozpis úklidu'!A24," / frekvence: ",'Rozpis úklidu'!F24) -> recepce+balkon / frekvence: denně | C63: =IF('Rozpis úklidu'!N24=0,'Rozpis úklidu'!M24*B63/60,'Rozpis úklidu'!N24*B63/60) -> 0 | D63: ='Rozpis úklidu'!L24 -> Typová činnost č. 2 a 3 | E63: ='Rozpis úklidu'!P24*F63 -> 0 | F63: 0 | G63: =IF(F63<B63,(B63-F63)*('Rozpis úklidu'!P24)*2,0) -> 0
A64: =CONCATENATE('Rozpis úklidu'!A25," / frekvence: ",'Rozpis úklidu'!F25) -> společenská místnost- kuchyň+ soc.zař+ balkon / frekvence: denně | C64: =IF('Rozpis úklidu'!N25=0,'Rozpis úklidu'!M25*B64/60,'Rozpis úklidu'!N25*B64/60) -> 0 | D64: ='Rozpis úklidu'!L25 -> Typová činnost č. 2, 3, 5, 14 a 15 | E64: ='Rozpis úklidu'!P25*F64 -> 0 | F64: 0 | G64: =IF(F64<B64,(B64-F64)*('Rozpis úklidu'!P25)*2,0) -> 0
A65: =CONCATENATE('Rozpis úklidu'!A26," / frekvence: ",'Rozpis úklidu'!F26) -> 2x kancelář(vedoucí, zástup) / frekvence: týdně | C65: =IF('Rozpis úklidu'!N26=0,'Rozpis úklidu'!M26*B65/60,'Rozpis úklidu'!N26*B65/60) -> 0 | D65: ='Rozpis úklidu'!L26 -> Typová činnost č. 3 | E65: ='Rozpis úklidu'!P26*F65 -> 0 | F65: 0 | G65: =IF(F65<B65,(B65-F65)*('Rozpis úklidu'!P26)*2,0) -> 0
A66: =CONCATENATE('Rozpis úklidu'!A27," / frekvence: ",'Rozpis úklidu'!F27) -> předsíň / frekvence: týdně | C66: =IF('Rozpis úklidu'!N27=0,'Rozpis úklidu'!M27*B66/60,'Rozpis úklidu'!N27*B66/60) -> 0 | D66: ='Rozpis úklidu'!L27 -> Typová činnost č. 3 | E66: ='Rozpis úklidu'!P27*F66 -> 0 | F66: 0 | G66: =IF(F66<B66,(B66-F66)*('Rozpis úklidu'!P27)*2,0) -> 0
A67: =CONCATENATE('Rozpis úklidu'!A28," / frekvence: ",'Rozpis úklidu'!F28) -> wc + sprcha (vedení) / frekvence: týdně | C67: =IF('Rozpis úklidu'!N28=0,'Rozpis úklidu'!M28*B67/60,'Rozpis úklidu'!N28*B67/60) -> 0 | D67: ='Rozpis úklidu'!L28 -> Typová činnost č. 14 a 15 | E67: ='Rozpis úklidu'!P28*F67 -> 0 | F67: 0 | G67: =IF(F67<B67,(B67-F67)*('Rozpis úklidu'!P28)*2,0) -> 0
A68: =CONCATENATE('Rozpis úklidu'!A29," / frekvence: ",'Rozpis úklidu'!F29) -> chodba přízemí obě budovy / frekvence: denně | C68: =IF('Rozpis úklidu'!N29=0,'Rozpis úklidu'!M29*B68/60,'Rozpis úklidu'!N29*B68/60) -> 0 | D68: ='Rozpis úklidu'!L29 -> Typová činnost č. 1 | E68: ='Rozpis úklidu'!P29*F68 -> 0 | F68: 0 | G68: =IF(F68<B68,(B68-F68)*('Rozpis úklidu'!P29)*2,0) -> 0
A69: =CONCATENATE('Rozpis úklidu'!A30," / frekvence: ",'Rozpis úklidu'!F30) -> vstupní hala / frekvence: denně | C69: =IF('Rozpis úklidu'!N30=0,'Rozpis úklidu'!M30*B69/60,'Rozpis úklidu'!N30*B69/60) -> 0 | D69: ='Rozpis úklidu'!L30 -> Typová činnost č. 1 | E69: ='Rozpis úklidu'!P30*F69 -> 0 | F69: 0 | G69: =IF(F69<B69,(B69-F69)*('Rozpis úklidu'!P30)*2,0) -> 0
A70: =CONCATENATE('Rozpis úklidu'!A31," / frekvence: ",'Rozpis úklidu'!F31) -> vstupní schodiště přední / frekvence: denně | C70: =IF('Rozpis úklidu'!N31=0,'Rozpis úklidu'!M31*B70/60,'Rozpis úklidu'!N31*B70/60) -> 0 | D70: ='Rozpis úklidu'!L31 -> Typová činnost č. 1 | E70: ='Rozpis úklidu'!P31*F70 -> 0 | F70: 0 | G70: =IF(F70<B70,(B70-F70)*('Rozpis úklidu'!P31)*2,0) -> 0
A71: =CONCATENATE('Rozpis úklidu'!A32," / frekvence: ",'Rozpis úklidu'!F32) -> vstupní schodiště zadní / frekvence: týdně | C71: =IF('Rozpis úklidu'!N32=0,'Rozpis úklidu'!M32*B71/60,'Rozpis úklidu'!N32*B71/60) -> 0 | D71: ='Rozpis úklidu'!L32 -> Typová činnost č. 1 | E71: ='Rozpis úklidu'!P32*F71 -> 0 | F71: =B71 -> 0 | G71: =IF(F71<B71,(B71-F71)*('Rozpis úklidu'!P32)*2,0) -> 0
A72: =CONCATENATE('Rozpis úklidu'!A61," / frekvence: ",'Rozpis úklidu'!F61) -> studovna velká 10. patro / frekvence: týdně | C72: =IF('Rozpis úklidu'!N61=0,'Rozpis úklidu'!M61*B72/60,'Rozpis úklidu'!N61*B72/60) -> 0 | D72: ='Rozpis úklidu'!L61 -> Typová činnost č. 3 | E72: ='Rozpis úklidu'!P61*F72 -> 0 | F72: =B72 -> 0 | G72: =IF(F72<B72,(B72-F72)*('Rozpis úklidu'!P61)*2,0) -> 0
A73: =CONCATENATE('Rozpis úklidu'!A62," / frekvence: ",'Rozpis úklidu'!F62) -> studovna velká 11. patro / frekvence: týdně | C73: =IF('Rozpis úklidu'!N62=0,'Rozpis úklidu'!M62*B73/60,'Rozpis úklidu'!N62*B73/60) -> 0 | D73: ='Rozpis úklidu'!L62 -> Typová činnost č. 3 | E73: ='Rozpis úklidu'!P62*F73 -> 0 | F73: =B73 -> 0 | G73: =IF(F73<B73,(B73-F73)*('Rozpis úklidu'!P62)*2,0) -> 0
A74: =CONCATENATE('Rozpis úklidu'!A69," / frekvence: ",'Rozpis úklidu'!F69) -> studovna malá 10. patro / frekvence: týdně | C74: =IF('Rozpis úklidu'!N69=0,'Rozpis úklidu'!M69*B74/60,'Rozpis úklidu'!N69*B74/60) -> 0 | D74: ='Rozpis úklidu'!L69 -> Typová činnost č. 3 | E74: ='Rozpis úklidu'!P69*F74 -> 0 | F74: =B74 -> 0 | G74: =IF(F74<B74,(B74-F74)*('Rozpis úklidu'!P69)*2,0) -> 0
A75: =CONCATENATE('Rozpis úklidu'!A70," / frekvence: ",'Rozpis úklidu'!F70) -> studovna malá 11. patro / frekvence: týdně | C75: =IF('Rozpis úklidu'!N70=0,'Rozpis úklidu'!M70*B75/60,'Rozpis úklidu'!N70*B75/60) -> 0 | D75: ='Rozpis úklidu'!L70 -> Typová činnost č. 3 | E75: ='Rozpis úklidu'!P70*F75 -> 0 | F75: =B75 -> 0 | G75: =IF(F75<B75,(B75-F75)*('Rozpis úklidu'!P70)*2,0) -> 0
A76: =CONCATENATE('Rozpis úklidu'!A81," / frekvence: ",'Rozpis úklidu'!F81) -> schodiště na střechu, levá+pravá budova / frekvence: čtvrtletně | C76: =IF('Rozpis úklidu'!N81=0,'Rozpis úklidu'!M81*B76/60,'Rozpis úklidu'!N81*B76/60) -> 0 | D76: ='Rozpis úklidu'!L81 -> Typová činnost č. 1 | E76: ='Rozpis úklidu'!P81*F76 -> 0 | F76: =B76 -> 0 | G76: =IF(F76<B76,(B76-F76)*('Rozpis úklidu'!P81)*2,0) -> 0
A77: =CONCATENATE('Rozpis úklidu'!A82," / frekvence: ",'Rozpis úklidu'!F82) -> chodby 10 p. / frekvence: denně | C77: =IF('Rozpis úklidu'!N82=0,'Rozpis úklidu'!M82*B77/60,'Rozpis úklidu'!N82*B77/60) -> 0 | D77: ='Rozpis úklidu'!L82 -> Typová činnost č. 1 | E77: ='Rozpis úklidu'!P82*F77 -> 0 | F77: =B77 -> 0 | G77: =IF(F77<B77,(B77-F77)*('Rozpis úklidu'!P82)*2,0) -> 0
A78: =CONCATENATE('Rozpis úklidu'!A83," / frekvence: ",'Rozpis úklidu'!F83) -> chodby 11 p. / frekvence: denně | C78: =IF('Rozpis úklidu'!N83=0,'Rozpis úklidu'!M83*B78/60,'Rozpis úklidu'!N83*B78/60) -> 0 | D78: ='Rozpis úklidu'!L83 -> Typová činnost č. 1 | E78: ='Rozpis úklidu'!P83*F78 -> 0 | F78: =B78 -> 0 | G78: =IF(F78<B78,(B78-F78)*('Rozpis úklidu'!P83)*2,0) -> 0
A79: =CONCATENATE('Rozpis úklidu'!A84," / frekvence: ",'Rozpis úklidu'!F84) -> chodby 12 p. / frekvence: denně | C79: =IF('Rozpis úklidu'!N84=0,'Rozpis úklidu'!M84*B79/60,'Rozpis úklidu'!N84*B79/60) -> 0 | D79: ='Rozpis úklidu'!L84 -> Typová činnost č. 1 | E79: ='Rozpis úklidu'!P84*F79 -> 0 | F79: =B79 -> 0 | G79: =IF(F79<B79,(B79-F79)*('Rozpis úklidu'!P84)*2,0) -> 0
A80: =CONCATENATE('Rozpis úklidu'!A91," / frekvence: ",'Rozpis úklidu'!F91) -> vstupní dveře do koleje / frekvence: týdně | C80: =IF('Rozpis úklidu'!N91=0,'Rozpis úklidu'!M91*B80/60,'Rozpis úklidu'!N91*B80/60) -> 0 | D80: ='Rozpis úklidu'!L91 -> Typová činnost č. 12 | E80: ='Rozpis úklidu'!P91*F80 -> 0 | F80: 0 | G80: =IF(F80<B80,(B80-F80)*('Rozpis úklidu'!P91)*2,0) -> 0
B81: celkem hodin | C81: =SUM(C46:C80) -> 0 | D81: K FAKTURACI CELKEM: | E81: =SUM(E46:E80) -> 0 | G81: =SUM(G46:G80) -> 0
A82: Podpis vedoucí směny: | D82: Podpis zástupce vedení koleje:
A83: Tisk: Ctrl+s
A84: Karta úklidu | D84: ='Rozpis úklidu'!A1 -> kolej: Thalerova, VŠE
A85: SEZONNÍ ÚKLID DEN: | B85: =NOW() -> 2025-01-22T13:48:11.870 | C85: =CHOOSE(WEEKDAY(B85,2),"pondělí","úterý","středa","čtvrtek","pátek","sobota","neděle") -> středa
A86: Úklidová jednotka | B86: počet úklidových jednotek | C86: Doba úklidu [hod.] | D86: Popis činnosti | E86: cena celkem za všechny úklidové jednotky (prac. dny) [Kč] | F86: Správně uklizené jednotky | G86: Smluvní pokuta [Kč] | H86: Poznámka
A87: ='Rozpis úklidu'!A37 -> Komfort.buňky,soc.zařízení,kuchyň+balkon HOTEL - průběžně | C87: =IF('Rozpis úklidu'!N37=0,'Rozpis úklidu'!M37*B87/60,'Rozpis úklidu'!N37*B87/60) -> 0 | D87: ='Rozpis úklidu'!L37 -> Typová činnost č. 9 | E87: ='Rozpis úklidu'!P37*F87 -> 0 | F87: =B87 -> 0 | G87: =IF(F87<B87,(B87-F87)*('Rozpis úklidu'!P37)*2,0) -> 0
A88: ='Rozpis úklidu'!A38 -> Komfort.buňky,soc.zařízení,kuchyň+balkon HOTEL - po vystěhování | C88: =IF('Rozpis úklidu'!N38=0,'Rozpis úklidu'!M38*B88/60,'Rozpis úklidu'!N38*B88/60) -> 0 | D88: ='Rozpis úklidu'!L38 -> Typová činnost č. 8 | E88: ='Rozpis úklidu'!P38*F88 -> 0 | F88: 0 | G88: =IF(F88<B88,(B88-F88)*('Rozpis úklidu'!P38)*2,0) -> 0
A89: ='Rozpis úklidu'!A53 -> pokoj jednolůžkový-wc + koupelna | C89: =IF('Rozpis úklidu'!N53=0,'Rozpis úklidu'!M53*B89/60,'Rozpis úklidu'!N53*B89/60) -> 0 | D89: ='Rozpis úklidu'!L53 -> Typová činnost č. 14 a 15 | E89: ='Rozpis úklidu'!P53*F89 -> 0 | F89: =B89 -> 0 | G89: =IF(F89<B89,(B89-F89)*('Rozpis úklidu'!P53)*2,0) -> 0
A90: ='Rozpis úklidu'!A54 -> pokoj jednolůžkový | C90: =IF('Rozpis úklidu'!N54=0,'Rozpis úklidu'!M54*B90/60,'Rozpis úklidu'!N54*B90/60) -> 0 | D90: ='Rozpis úklidu'!L54 -> Typová činnost č. 6 | E90: ='Rozpis úklidu'!P54*F90 -> 0 | F90: =B90 -> 0 | G90: =IF(F90<B90,(B90-F90)*('Rozpis úklidu'!P54)*2,0) -> 0
A91: ='Rozpis úklidu'!A55 -> pokoj jednolůžkový-předsíň | C91: =IF('Rozpis úklidu'!N55=0,'Rozpis úklidu'!M55*B91/60,'Rozpis úklidu'!N55*B91/60) -> 0 | D91: ='Rozpis úklidu'!L55 -> Typová činnost č. 7 | E91: ='Rozpis úklidu'!P55*F91 -> 0 | F91: 0 | G91: =IF(F91<B91,(B91-F91)*('Rozpis úklidu'!P55)*2,0) -> 0
A92: ='Rozpis úklidu'!A87 -> okna | C92: =IF('Rozpis úklidu'!N87=0,'Rozpis úklidu'!M87*B92/60,'Rozpis úklidu'!N87*B92/60) -> 0 | D92: ='Rozpis úklidu'!L87 -> Typová činnost č. 12 | E92: ='Rozpis úklidu'!P87*F92 -> 0 | F92: =B92 -> 0 | G92: =IF(F92<B92,(B92-F92)*('Rozpis úklidu'!P87)*2,0) -> 0
A93: ='Rozpis úklidu'!A88 -> Balkonové dveře | C93: =IF('Rozpis úklidu'!N88=0,'Rozpis úklidu'!M88*B93/60,'Rozpis úklidu'!N88*B93/60) -> 0 | D93: ='Rozpis úklidu'!L88 -> Typová činnost č. 12 | E93: ='Rozpis úklidu'!P88*F93 -> 0 | F93: =B93 -> 0 | G93: =IF(F93<B93,(B93-F93)*('Rozpis úklidu'!P88)*2,0) -> 0
B94: celkem hodin | C94: =SUM(C87:C93) -> 0 | D94: K FAKTURACI CELKEM: | E94: =SUM(E87:E93) -> 0 | G94: =SUM(G87:G93) -> 0
A95: Podpis vedoucí směny: | D95: Podpis zástupce vedení koleje:
A96: Tisk: Ctrl+n
A97: Karta úklidu | D97: ='Rozpis úklidu'!A1 -> kolej: Thalerova, VŠE
A98: ÚKLID O VÍKENDU DNE: | B98: =NOW() -> 2025-01-22T13:48:11.870 | C98: =CHOOSE(WEEKDAY(B98,2),"pondělí","úterý","středa","čtvrtek","pátek","sobota","neděle") -> středa
A99: Úklidová jednotka | B99: počet úklidových jednotek | C99: Doba úklidu [hod.] | D99: Popis činnosti | E99: cena celkem za všechny úklidové jednotky (VÍKEND) [Kč] | F99: Správně uklizené jednotky | G99: Smluvní pokuta [Kč] | H99: Poznámka
A100: ='Rozpis úklidu'!A37 -> Komfort.buňky,soc.zařízení,kuchyň+balkon HOTEL - průběžně | C100: =IF('Rozpis úklidu'!N37=0,'Rozpis úklidu'!M37*B100/60,'Rozpis úklidu'!N37*B100/60) -> 0 | D100: ='Rozpis úklidu'!L37 -> Typová činnost č. 9 | E100: =IF('Rozpis úklidu'!$B$2>0,'Rozpis úklidu'!P37*F100*'Rozpis úklidu'!$D$2/'Rozpis úklidu'!$B$2,'Rozpis úklidu'!P37*F100*'Rozpis úklidu'!$D$2) -> 0 | F100: =B100 -> 0 | G100: =IF(F100<B100,(B100-F100)*('Rozpis úklidu'!P37)*2,0) -> 0
A101: ='Rozpis úklidu'!A38 -> Komfort.buňky,soc.zařízení,kuchyň+balkon HOTEL - po vystěhování | C101: =IF('Rozpis úklidu'!N38=0,'Rozpis úklidu'!M38*B101/60,'Rozpis úklidu'!N38*B101/60) -> 0 | D101: ='Rozpis úklidu'!L38 -> Typová činnost č. 8 | E101: =IF('Rozpis úklidu'!$B$2>0,'Rozpis úklidu'!P38*F101*'Rozpis úklidu'!$D$2/'Rozpis úklidu'!$B$2,'Rozpis úklidu'!P38*F101*'Rozpis úklidu'!$D$2) -> 0 | F101: =B101 -> 0 | G101: =IF(F101<B101,(B101-F101)*('Rozpis úklidu'!P38)*2,0) -> 0
B102: celkem hodin/víkend | C102: =SUM(C100:C101) -> 0 | D102: K FAKTURACI CELKEM: | E102: =SUM(E100:E101) -> 0 | G102: =SUM(G100:G101) -> 0
A103: Podpis vedoucí směny: | D103: Podpis zástupce vedení koleje:

Sheet Činnosti úklidu
B1: Úklidová činnost
B2: Úklidová činnost probíhá v čase od 07:00 hod. do 15.00 hod. v jednosměnném provozu v pětidenním pracovním týdnu, úklid hotelových pokojů musí být dle potřeby zajištěn i o víkendu. V době nastěhování a vystěhování studentů koncem letního semestru a začátkem zimního semestru stanovuje dobu pro úklid podle aktuálních potřeb vedoucí/zástupce vedoucí koleje a to včetně úklidu o víkendu. Při úklidu je potřeba používat úklidové, čistící a desinfekční prostředky vhodné pro daný předmět úklidu a dodržovat návody na použití příslušných úklidových, čistících a desinfekčních prostředků a bezpečnostní a hygienická pravidla
A3: Definice pojmů:
A4: Zametání | B4: pomocí vhodného smetáku zamést dané podlahové plochy.
A5: Vytírání | B5: pomocí mopu za použití vody a odpovídajícího saponátu vytřít dané podlahové plochy.
A6: Mytí | B6: pomocí hadru, utěrky nebo houbičky, za použití vody a odpovídajícího saponátu, umýt plochy nábytku, dveří, spotřebičů, keramických a jiných obkladů, topení apod.
A7: Čištění | B7: důkladné čištění, zvláště skvrn, za pomocí odpovídajících čisticích prostředků, ploch nábytku, dveří, spotřebičů, keramických a jiných obkladů, topení apod.
A8: Desinfekce | B8: po umytí nebo vyčištění daných ploch, podlah, spotřebičů aj. použít podle návodu odpovídající desinfekční prostředek.
A9: Leštění | B9: leštění všech skleněných a zrcadlových ploch za použití odpovídajícího přípravku na mytí a leštění skel.
A10: Luxování | B10: čištění podlah za použití vysavače.
A11: Strojové čištění | B11: se provádí za použití čistícího stroje na vodní nebo parní bázi (strojové čištění postelí, matrací, koberců apod.).
A12: Stírání prachu | B12: setření prachu vhodnou utěrkou za použití odpovídajícího přípravku na odstranění prachu, odstranění pavučin.
A13: Úklid odpadů | B13: řádné uvolnění, umytí, vyčištění a vydesinfikování odpadů na soc. zařízeních, WC, umývárnách a sprchových koutech za použití odpovídajících přípravků.
A14: Mimořádný úklid | B14: úklid znečištěného WC (mimo mísu), umývárny nebo společných prostor zvratky nebo exkrementy (uklízečka vyrozumí vedoucí/zástupce vedoucí koleje).
A15: Mytí oken | B15: umytí parapetů na mokro za použití odpovídajícího saponátu, umytí rámů oken na mokro za použití odpovídajícího saponátu, umytí a vyleštění oken odpovídajícím přípravkem na mytí a leštění oken.
A16: Zalévání květin | B16: zalití květin čistou odstátou vodou v přiměřeném množství s ohledem na druh rostliny. Podle potřeby použít odpovídající hnojivo v dávkování podle návodu k použití.
A17: Vynášení a likvidace odpadu | B17: vynesení odpadu ze všech odpadních nádob (i z prostoru okolo těchto nádob), a ze skartovaček, umytí odpadních nádob a doplnění pytlů na odpadky do odpadních nádob. Odpad dle možnosti vhodným způsobem třídit.
A18: Doplňování hotelových potřeb | B18: v hotelovém provozu doplnit toaletní papír do zásobníků doplnit ručníky a hotelové mýdlo.
A20: Číslo typové činnosti | B20: Popis typových pracovních činností:
A21: 1. | B21: Úklidem společných prostor, podlah chodeb, schodišť a vestibulu se rozumí: zamést a vytřít podlahy, odstranit našlapané žvýkačky a jiné nečistoty, vyluxovat podlahy kryté kobercem. Umýt parapety, zábradlí a hasicí přístroje umístěné na chodbách, vyleštit skleněné plochy na chodbách a ve vestibulech, setřít prach a pavučiny. Sepsat a nahlásit vedení koleje všechny závady a škody.
A22: 2. | B22: Úklidem balkonů se rozumí: zamést a vytřít podlahy, odstranit našlapané žvýkačky a jiné nečistoty, umýt parapety a zábradlí. Odstranit pavučiny. Vynést odpady a popř. i vysypat popelníky.
A23: 3. | B23: Úklidem společenských, (studoven, kluboven apod.) zájmových (posiloven, tělocvičen apod.) a zasedacích místností, kanceláří, skladů, šaten a výtahů se rozumí: zamést a vytřít podlahy, podlahy pokryté kobercem vyluxovat, setřít prach a pavučiny ze všech dosažitelných a volně přístupných míst a zařízení místností (topení, cvičební nářadí apod.), umýt a vyčistit skvrny kolem klik, dveří, vypínačů a světel. Srovnat nábytek a jiné vybavení místností. Srovnat nebo dověsit záclony a závěsy. Vyleštit zrcadla. Vynést odpad. Sepsat a nahlásit vedení koleje všechny závady a škody.
A24: 4. | B24: Úklidem prádelen se rozumí: zamést a vytřít podlahy, setřít prach a pavučiny ze všech dosažitelných a volně přístupných míst a zařízení místností (praček, topení, apod.). Vyčistit filtry praček, vyčistit zásobníky na prášek. Umýt a vyčistit dveře, kliky, vypínače a světla. Srovnat nebo dověsit záclony a závěsy. Vyleštit zrcadla. Vynést odpad. Sepsat a nahlásit vedení koleje všechny závady a škody.
A25: 5. | B25: Úklidem kuchyněk se rozumí: umýt, vyčistit a vydesinfikovat sporák, vařič, mikrovlnnou troubu, digestoř, pracovní desky a zařízení místnosti kuchyňky. Umýt, vyčistit a vydesinfikovat obklady. Pokud je kuchyňka vybavena nádobím umýt nádobí. Odmrazit a vyčistit lednici. Odstranit všechny prošlé nebo kazící se potraviny. Zamést a vytřít podlahy. Vynést odpad. Setřít prach a pavučiny. Sepsat a nahlásit vedení koleje všechny závady a škody.
A26: 6. | B26: Generálním úklidem pokojů po odchodu studentů se rozumí: umýt nábytek z venku (postele, stoly, židle, police, skříně apod.) i zevnitř (skříně, šuplíky, peřináče, postele apod.) a vyčistit od skvrn. Vyleštit zrcadla a okna. Vyluxovat/strojově vyčistit matrace postelí. Setřít prach a pavučiny (včetně žaluzií). Umýt a vyčistit veškeré obložení, lišty, obrazy, dveře, kliky, rámy oken, parapety, vypínače, zásuvky, topení, světla, lampičky apod. Umýt ledničku zevnitř i zvenku. Zamést a vytřít podlahy, podlahy kryté kobercem vyluxovat, a to i pod a za postelí, křesly a závěsy. Srovnat nebo dověsit záclony a závěsy, srovnat nábytek a jiné vybavení pokoje. Vynést odpad, umýt, otřít a vyleštit odpadkový koš. Zlikvidovat případné komáry a mouchy. Vyvětrat a popř. i navonět. Sepsat a nahlásit vedení koleje všechny závady a škody. Případné nalezené věci po ubytovaných předat vedení koleje.
A27: 7. | B27: Úklidem předsíní buněk se rozumí: úklid sociálního zařízení podle bodu 14. a 15. úklid kuchyňky podle bodu 5. Zamést a vytřít podlahy. Umýt a vyčistit pracovní plochy a nábytek. Setřít prach a pavučiny. Vynést odpad. Sepsat a nahlásit vedení koleje všechny závady a škody.
A28: 8. | B28: Úklidem hotelových pokojů po vystěhování se rozumí: umýt nábytek z venku (postele, stoly, židle, police, skříně apod.) i zevnitř (skříně, šuplíky, peřináče, postele apod.) a vyčistit od skvrn. Vyleštit zrcadla a okna. Převléct a ustlat postele, vyluxovat/strojově vyčistit matrace postelí. Setřít prach a pavučiny (včetně žaluzií). Umýt a vyčistit veškeré obložení, lišty, obrazy, dveře, kliky, rámy oken, parapety, vypínače, zásuvky, televizi, topení, světla, lampičky apod. Umýt nádobí. Umýt ledničku zevnitř i zvenku, umytí koupelny (sprchový kout, WC, umyvadlo). Zamést a vytřít podlahy, podlahy kryté kobercem vyluxovat, a to i pod a za postelí, křesly a závěsy. Srovnat nebo dověsit záclony a závěsy, srovnat nábytek a jiné vybavení pokoje. Vynést odpad, umýt, otřít a vyleštit odpadkový koš. Zlikvidovat případné komáry a mouchy. Doplnit hotelové potřeby. Vyvětrat a popř. i navonět. Předat složené použité prádlo a ručníky skladní. Sepsat a nahlásit vedení koleje všechny závady a škody. Případné nalezené věci po hostech předat vedení koleje.
A29: 9. | B29: Úklidem hotelových pokojů v průběhu ubytování se rozumí: ustlání postelí, popř. výměna ložního prádla každý 4. den pobytu, výměna osušek a ručníků, doplnění toaletního papíru, vynesení odpadků, umytí koupelny (sprchový kout, WC, umyvadlo), vytření podlahy.
A30: 10. | B30: Přebráním uklizeného pokoje po studentech se rozumí: podle bodu 6. a 7. zkontrolovat úklid provedený studenty. Přebrat klíče od pokoje. Podepsat / potvrdit v aplikaci potvrzení o řádně provedeném úklidu a odevzdání klíčů. Sepsat a nahlásit vedení koleje všechny závady a škody. V případě nutnosti upozornit studenty na nedostatky v úklidu s tím, že je musí ve stanovené době odstranit, po té provést novou kontrolu úklidu. V případě, že ani napodruhé nebude pokoj řádně uklizen nahlásit tuto skutečnost vedení koleje. Dle pokynů vedení koleje umístit ložní prádlo na postele.
A31: 11. | B31: Úklidem výtahu se rozumí: zametení a vytření podlahy, vyčištění dveřních drážek, mytí stěn, mytí světel, jsou li instalována vyleštění zrcadel.
A32: 12. | B32: Mytím oken se rozumí: mytí a leštění skel, mytí rámů, mytí parapetu, jsou-li instalovány setření žaluzií.
A33: 13. | B33: Čištěním matrací: vyčištění matrací parním strojem.
A34: 14. | B34: Úklidem WC se rozumí: umýt, vyčistit a vydesinfikovat místnost WC, umýt záchodovou mísu zevnitř i zvenku umýt nohu a trubku za WC, umýt prkýnko a nádobu na splachovací vodu, popř. umýt pisoáry, umyvadla, baterie, obklady, odpady, podlahy a dveře. Otřít držák na toaletní papír. Umýt dlaždičky a silikon od plísně. Vylít vodu a otřít pouzdro na WC štětku. Vyleštit zrcadla. Vynést odpad. Setřít prach a pavučiny. Vždy za použití odpovídajícího mycího/čistícího přípravku.
A35: 15. | B35: Úklidem koupelen a sprch se rozumí: umýt, vyčistit a vydesinfikovat umyvadlo zevnitř i zvenku včetně trubek pod ním, baterie, sprchový kout, obklady, poličku nad umyvadlem i ve sprchovém koutě, odpady, podlahy a dveře. Umýt stěny sprchového koutu, gumové těsnění popř. závěs sprchového koutu. Odstranit rez a vodní kámen. Vynést odpad. Vyleštit zrcadlo, poličku, sprchu a držák na sprchu. Umýt dlaždičky a silikon od plísně. Vynést odpad. Setřít prach a pavučiny. Vždy za použití odpovídajícího mycího/čistícího přípravku
